Workbook

Sheet Open
A1: JULY 5th Barrels
A3: Futurity | B3: Der | C3: HS | D3: Age Inct. | E3: Open C/O | F3: YOU | G3: Draw | H3: Rider Name | I3: Horse Name | J3: Pen | K3: Time | L3: Final Time | M3: Placing | N3: Money Earned | P3: D Placing | R3: Split
G4: 143 | H4: Payton Schoeppach | I4: The Mafia Boss | K4: 15.75 | M4: 1D 1st | N4: 977.88
G5: 189 | H5: Danyelle Campbell | I5: JL Tularosa | K5: 15.901 | M5: 1D 2nd | N5: 809.28
D6: S | G6: 33 | H6: Tammy Rokus | I6: Mitey Confederate | K6: 15.932 | M6: 1D 3rd | N6: 640.68
D7: A | G7: 103 | H7: Kinsey Chandler | I7: Judge Knott | K7: 15.936 | M7: 1D 4th | N7: 472.08
G8: 26 | H8: Lindsey Hoffman | I8: First Down Deception | K8: 15.978 | M8: 1D 5th | N8: 303.48
B9: X | G9: 152 | H9: Amanda Clark | I9: Dancin For Fame | K9: 16.02 | M9: 1D 6th | N9: 168.6
G10: 221 | H10: Danyelle Campbell | I10: AR Dash Ta Flame | K10: 16.029
G11: 88 | H11: Natalie Kurosky | I11: Turn N With Ease | K11: 16.038
A12: X | C12: X | D12: A | G12: 5 | H12: Kylee Scribner | I12: Firewater Cartel | K12: 16.079 | P12: # Entered
D13: S | G13: 106 | H13: Lisa Wernli | I13: Flashs Fine Effort | K13: 16.087
G14: 126 | H14: Brie Wells | I14: Rock O Blazin Fame | K14: 16.093
G15: 227 | H15: Christy Larsen | I15: Ice | K15: 16.101
B16: X | G16: 48 | H16: Nisa Berry | I16: NB Keep N Time | K16: 16.106
G17: 32 | H17: Nicole Driggers | I17: Famous Desire | K17: 16.131
A18: X | G18: 52 | H18: Janna Brown | I18: Spark N Lion | K18: 16.196
G19: 116 | H19: Amanda Clark | I19: Dillon Remedy | K19: 16.211
B20: X | C20: X | D20: S | G20: 61 | H20: Stacey Gates | I20: Ivys Been Charmed | K20: 16.216
B21: X | G21: 47 | H21: Jamie Olsen | I21: Miss Famous Beduino | K21: 16.234
G22: 84 | H22: Lacy Kimball | I22: Stayabay | K22: 16.236
D23: S | G23: 81 | H23: Sherri Barnes | I23: Racing For Perks | K23: 16.24
G24: 50 | H24: Natalie Kurosky | I24: Dontbeadragbeaqueen | K24: 16.256 | M24: 2D 1st | N24: 814.9
G25: 94 | H25: Becky Dillard | I25: Shesa Hot Loop | K25: 16.257 | M25: 2D 2nd | N25: 674.4
D26: A | G26: 158 | H26: Stephanie Snazuk | I26: SR Ima Royal Streaker | K26: 16.275 | M26: 2D 3rd | N26: 533.9
B27: X | D27: A | G27: 195 | H27: Stephanie Fryar | I27: Some Streakin French | K27: 16.302 | M27: 2D 4th | N27: 393.4
G28: 105 | H28: Nicole Driggers | I28: Blazin High Octane | K28: 16.312 | M28: 2D 5th | N28: 252.9
G29: 166 | H29: Pam Smith | I29: Wicked | K29: 16.317 | M29: 2D 6th | N29: 140.5
A30: X | G30: 93 | H30: Krista Whitley | I30: Fabulace Fame | K30: 16.347
D31: S | G31: 129 | H31: Jenny Zant | I31: Raise Me Ta Fame | K31: 16.348
G32: 194 | H32: Carlee Otero | I32: Fame | K32: 16.361
G33: 80 | H33: Nisa Berry | I33: Featuring This Jet | K33: 16.365
G34: 163 | H34: Katie Perkins | I34: Carmella | K34: 16.379
A35: X | G35: 85 | H35: Janna Brown | I35: Jets Top Gun | K35: 16.38
G36: 206 | H36: Wendy Weems | I36: Brick | K36: 16.382
G37: 228 | H37: Hilary Hightower | I37: Hanks Bug Boube | K37: 16.384
G38: 154 | H38: Mindy Holloway | I38: Tiny | K38: 16.41
G39: 76 | H39: Jennilee Thompson | I39: Rare THeres Smoke | K39: 16.416
F40: X | G40: 167 | H40: Brinley Howard | I40: Virginia | K40: 16.418
G41: 101 | H41: Denny Ralls | I41: SV Southern Comfort | K41: 16.431
A42: X | D42: A | G42: 223 | H42: Stephanie Fryar | I42: Cant Stop The Feeling | K42: 16.445
G43: 71 | H43: Nicole Driggers | I43: Desire N A Fling | K43: 16.446
G44: 231 | H44: Jancie Shelburne | I44: Bogie | K44: 16.461
A45: X | G45: 151 | H45: Ginger Billingsley | I45: AllJOkesalide | K45: 16.466
E46: X | F46: X | G46: 199 | H46: Emma Nelson | I46: Rolex | K46: 16.47
D47: A | G47: 15 | H47: Daisy Baird | I47: Elishas Arrow | K47: 16.474
D48: S | G48: 43 | H48: Laura Creel | I48: Frenchmans Docs Rx | K48: 16.496
C49: X | G49: 162 | H49: Jennilee Thompson | I49: Chicks Share Of Fame | K49: 16.507
G50: 229 | H50: Savannah Mantooth | I50: Feature Me French | K50: 16.516
G51: 29 | H51: Layton Tishman | I51: China Grove | K51: 16.518
G52: 156 | H52: Nisa Berry | I52: Jess Stylin | K52: 16.534
G53: 41 | H53: Nikki Cain | I53: Smooth Finances | K53: 16.559
D54: S | G54: 173 | H54: Jo Kirby | I54: Heavenly Joak | K54: 16.563
D55: S | G55: 20 | H55: Dawn Fryar | I55: Special Bid Of Frost | K55: 16.566
D56: A | G56: 91 | H56: Bianca Dos Santos | I56: Dashin Quickly | K56: 16.569
G57: 73 | H57: Lydia Butler | I57: Beduino N Fire Water | K57: 16.571
G58: 190 | H58: Shannon Pearson | I58: Reds Roany Pony | K58: 16.573
G59: 128 | H59: Casey Hammons | K59: 16.584
G60: 224 | H60: Daisha Smith | I60: CN French Fame Winny | K60: 16.586
G61: 252 | H61: Christy Larsen | I61: Uzi | K61: 16.598
G62: 62 | H62: Lee Barron | I62: Xtra Splash N Go | K62: 16.61
G63: 63 | H63: Mandy Smith | I63: Madaconfederatetwist | K63: 16.618
G64: 147 | H64: Lacy Billingsley | I64: Dirty Dizco Diane 37 | K64: 16.62
G65: 17 | H65: Karen Gaida | I65: Kiss This Guy Two | K65: 16.63
G66: 186 | H66: Misty Peek | I66: Amos | K66: 16.639
G67: 75 | H67: Nikki Cain | I67: Shakem Baby Shakem | K67: 16.644
G68: 22 | H68: Sydney Swatsell | I68: Smalls | K68: 16.645
D69: S | G69: 58 | H69: Johnell Ray | I69: Smooth Your Jets | K69: 16.654
D70: S | G70: 119 | H70: Sherri Barnes | I70: Famous Little jet | K70: 16.657
G71: 177 | H71: Lindsei Harvey | I71: travelin beduino | K71: 16.657
G72: 225 | H72: Caitlin Loomis | I72: Gold Mines Quien | K72: 16.662
G73: 96 | H73: Sally Preston | I73: See U Later Gator | K73: 16.672
G74: 159 | H74: Courtney Ford | I74: sally | K74: 16.674
D75: S | G75: 108 | H75: Debbie Richardson | I75: VF Going Big Time | K75: 16.683
G76: 165 | H76: Lauren Merica | I76: Rheta Rhetas | K76: 16.691
A77: X | D77: S | G77: 28 | H77: Jolene Jones | I77: Peppys Streakof Fame | K77: 16.704
D78: A | G78: 247 | H78: Stephanie Fryar | I78: RR LaJolla Roll | K78: 16.711
G79: 95 | H79: Kristen Hendewerk | I79: Sevens | K79: 16.712
D80: A | G80: 205 | H80: Brian Ramirez | I80: Holly | K80: 16.715
D81: A | G81: 98 | H81: Noah Grimes | I81: California Clone | K81: 16.721
D82: S | G82: 144 | H82: Lisa Wernli | I82: Babe On The Run | K82: 16.735
G83: 24 | H83: Brandee Hawkins | I83: Woody | K83: 16.735
D84: S | G84: 14 | H84: Simone Elmore | I84: Badger A Conchadrift | K84: 16.741
G85: 117 | H85: Mindy Holloway | I85: Spud | K85: 16.744
G86: 4 | H86: Sara Reed | I86: Rattle Me Too | K86: 16.746
G87: 21 | H87: Tawnie Vander Lans | I87: TS Return N Hayday | K87: 16.751 | M87: 3D 1st | N87: 651.92
G88: 66 | H88: Annesa Self | I88: KN Ronas Perky Fame | K88: 16.754 | M88: 3D 2nd | N88: 539.52
D89: A | G89: 181 | H89: Charlene Plate | I89: Blue Moon Frost | K89: 16.761 | M89: 3D 3rd | N89: 427.12
G90: 16 | H90: Natalie Kurosky | I90: Motivating Mover | K90: 16.764 | M90: 3D 4th | N90: 314.72
G91: 233 | H91: Wendy Weems | I91: Goin Slo | K91: 16.767 | M91: 3D 5th | N91: 202.32
G92: 109 | H92: Ginger Billingsley | I92: Gitanna Drifter Lady | K92: 16.785 | M92: 3D 6th | N92: 112.4
G93: 133 | H93: Sydney Swatsell | I93: Abby | K93: 16.79
G94: 46 | H94: Sarah Cazedessus | I94: Ride The Lightening | K94: 16.791
G95: 255 | H95: Maryln Bland | I95: Nicks Super Chance | K95: 16.795
G96: 18 | H96: Janna Brown | I96: O Toole Prize | K96: 16.803
G97: 100 | H97: Lee Barron | I97: Patron On The Rocks | K97: 16.81
D98: S | G98: 135 | H98: Debbie Bloxom | I98: Bad Fire Arising | K98: 16.814
G99: 8 | H99: Shannon Black | I99: TS Jets Blazin Lena | K99: 16.84 | P99: # Ran
G100: 19 | H100: Randi Roberts | I100: Boom Slicka Boom | K100: 16.845
G101: 30 | H101: Hayva Hawkins | I101: SHotgun | K101: 16.863
G102: 55 | H102: Krista Whitley | I102: Frenchmans Splash | K102: 16.866
G103: 187 | H103: Susan Campbell | I103: Bills Irish Whiskey | K103: 16.868
G104: 259 | H104: Erin Reich | I104: Leo | K104: 16.871
G105: 120 | H105: Jennilee Thompson | I105: Royal Shining Spark | K105: 16.875
G106: 97 | H106: Maci Berry | I106: Shezamaximumbugleo | K106: 16.9
G107: 202 | H107: Katie Weaver | I107: Brick House Lilly | K107: 16.905
G108: 214 | H108: Jancie Shelburne | I108: Rico | K108: 16.905
E109: X | F109: X | G109: 74 | H109: Charlesee Gallaway | I109: Big As I Am Rare | K109: 16.907
G110: 2 | H110: Michaela Robertson | I110: Shes Cartel Streaking | K110: 16.912 | P110: 2D | R110: 0.5
G111: 215 | H111: Kylie Munson | I111: KC Judge on Fire | K111: 16.919
G112: 222 | H112: Makala Pierce | I112: Melman | K112: 16.923
G113: 237 | H113: Kortney Fisher | I113: Frenchmans Francine | K113: 16.941
G114: 238 | H114: Kim Scott | I114: JK Fratwood Drift | K114: 16.944
D115: S | G115: 197 | H115: Diana Ulery | I115: EZ Jackie Luv | K115: 16.958
G116: 141 | H116: Gena Franklin | I116: SS StreakyMe | K116: 16.967
D117: S | G117: 164 | H117: Renae Osborn | I117: Hurricane | K117: 16.976
D118: A | G118: 174 | H118: Elyse Busby | I118: EB Rippe Effect | K118: 16.992
D119: S | G119: 118 | H119: Martha Jordan | I119: Fuel For Dash | K119: 16.992
G120: 235 | H120: Candie Wolf | I120: Nicinizer | K120: 16.999
D121: A | G121: 42 | H121: Jennifer Cullen | K121: 17.018
G122: 185 | H122: Kylee Scribner | I122: Friends With Benefit | K122: 17.028
G123: 219 | H123: Allison Veale | I123: Has To Be Cash | K123: 17.035
G124: 99 | H124: Jessica Mohr | I124: KN Chattin Bout Fame | K124: 17.06
F125: X | G125: 170 | H125: Shawnee Hawk | I125: Fax Me A Sweet Mint | K125: 17.061
D126: S | G126: 137 | H126: Charlene Glover | I126: Chevy Cinderella | K126: 17.071
G127: 257 | H127: Dakota Danley | I127: Eddie BJ | K127: 17.075
G128: 136 | H128: Joan Morgan | I128: Starlight Remedy | K128: 17.097
G129: 69 | H129: Kandace Bussell | I129: Circle Bar Rare Bugs | K129: 17.126
D130: A | G130: 6 | H130: Blake Myers | I130: Luvondarocks | K130: 17.139 | P130: =COUNTA(H125:H658) -> 128
G131: 37 | H131: Nicole Stageman | I131: Ms Texass Firewater | K131: 17.14
D132: A | G132: 131 | H132: Toby Osteen | I132: HIGHSPEEDSONOFAFROST | K132: 17.163
G133: 213 | H133: Kacey Kirby | I133: Jackies Run Ta Fame | K133: 17.184
D134: S | G134: 155 | H134: Karen Coskrey | I134: TS Dream Drifter | K134: 17.189
G135: 123 | H135: Nikki Cain | I135: Compromised Perks | K135: 17.198
G136: 60 | H136: Karen Gaida | I136: Ciclone Streak | K136: 17.201
G137: 184 | H137: Kristy Scribner | I137: Beggers Rockette | K137: 17.212
E138: X | F138: X | G138: 35 | H138: Laurel Allred | I138: Quicks Blue Peppy | K138: 17.214
D139: A | G139: 72 | H139: Tiffany Durham | I139: Dashin Luke Perry | K139: 17.243
D140: A | G140: 38 | H140: Jesse Budd | I140: Flicker Nic | K140: 17.25 | M140: 4D 1st | N140: 488.94
B141: X | G141: 92 | H141: Krista Lucas | I141: TBR Streak Of Perks | K141: 17.264 | M141: 4D 2nd | N141: 404.64
G142: 220 | H142: Kaytie Zuidema | I142: Misty K Quioxte | K142: 17.298 | M142: 4D 3rd | N142: 320.34
D143: A | G143: 79 | H143: Crystal Allred | I143: Lovemas Ghost | K143: 17.324 | M143: 4D 4th/5th | N143: 194
G144: 64 | H144: Whitney Fisher | I144: BB French N Easy | K144: 17.324 | M144: 4D 4th/5th | N144: 194
G145: 90 | H145: Sydney Swatsell | I145: Gus | K145: 17.346 | M145: 4D 6th | N145: 84.3
G146: 40 | H146: Angie Mitcchell | I146: Bam Bam | K146: 17.348
G147: 209 | H147: Amy Vincik | I147: Cahil | K147: 17.351
G148: 10 | H148: Rebba Wright | I148: Twosteppin Firewater | K148: 17.354
F149: X | G149: 168 | H149: Taegan Sanders | I149: Whizzer Guy | K149: 17.355
F150: X | G150: 191 | H150: Cooper Peek | I150: Dolly | K150: 17.357
G151: 11 | H151: Joanna Brown | I151: Dr Nicks Prime Time | K151: 17.362 | P151: # Left
G152: 45 | H152: Krista Lucas | I152: Crown Royal Jet | K152: 17.364
F153: X | G153: 59 | H153: Wimberlee Elliot | K153: 17.441
D154: S | G154: 192 | H154: Renae Osborn | I154: Monkey | K154: 17.444
D155: S | G155: 145 | H155: Kim Eisen | I155: Velvet Special Gal | K155: 17.479
D156: S | G156: 3 | H156: Lisa Corey | I156: Beda Dream | K156: 17.483 | P156: 4D | R156: 0.5
D157: S | G157: 127 | H157: Tracie Schoenthal | I157: Gunsnfirewater | K157: 17.506
G158: 203 | H158: Gretchen Goedeken | I158: Pretty Bay Pony | K158: 17.532
G159: 258 | H159: Delaney Siebert | I159: Streakin N Blazin | K159: 17.535
G160: 107 | H160: Kasey Barnes | I160: BB Booging Frenchman | K160: 17.544
D161: S | G161: 36 | H161: Patti Reardon | I161: HeCOme Dun | K161: 17.555
G162: 208 | H162: Christy Larsen | I162: Hottie | K162: 17.585
G163: 112 | H163: Janee' Ornelas | I163: Babe | K163: 17.59
D164: A | G164: 210 | H164: Ashley Moore | I164: Mucho Fast Dave | K164: 17.593
G165: 171 | H165: Gretchen Goedeken | I165: Spots In My Dreams | K165: 17.598
G166: 142 | H166: Rachel Eddins | I166: Patties Biankus | K166: 17.604
D167: A | G167: 251 | H167: Hollie Sirman | I167: Quick Boogie | K167: 17.611
G168: 179 | H168: Jessica Dunbar | I168: Pumba | K168: 17.62
D169: S | G169: 230 | H169: Marlyn Bland | I169: TK Lady Gotta Gun | K169: 17.679
G170: 34 | H170: Sally Fitzpatrick | I170: GBH Zip Jesse | K170: 17.697
D171: A | G171: 207 | H171: Hollie Sirman | I171: Easter Bunny Special | K171: 17.718
F172: X | G172: 193 | H172: Brinley Howard | I172: Dude | K172: 17.734
D173: S | G173: 56 | H173: Debra Cooper | I173: HugginAnativepepto | K173: 17.781 | M173: 5D 1st | N173: 325.96
F174: X | G174: 125 | H174: Madeleine Moll | I174: Vibrant Stylish Chic | K174: 17.826 | M174: 5D 2nd | N174: 269.76
G175: 65 | H175: Dena Jaminet | I175: My New Tattoo | K175: 17.83 | M175: 5D 3rd | N175: 213.56
F176: X | G176: 25 | H176: Knoxlee Elliot | K176: 17.844 | M176: 5D 4th | N176: 157.36
E177: X | F177: X | G177: 77 | H177: Mikayla Cearley | I177: TF PeppySmoken Savage | K177: 17.846 | M177: 5D 5th | N177: 101.16
D178: A | G178: 198 | H178: Makinzie Wetmore | I178: Hotrod | K178: 17.87 | M178: 5D 6th tie | N178: 28
G179: 234 | H179: Lauren Merica | I179: Gogo Romeo | K179: 17.87 | M179: 5D 6th tie | N179: 28
G180: 150 | H180: Adrein McFarland | I180: A Streak Of Happy | K180: 17.9
G181: 217 | H181: Trinity Brown | I181: NF Target the Money | K181: 17.903
G182: 146 | H182: Kathy Vasquez | I182: Sail On Ta Fame | K182: 17.931
D183: A | G183: 140 | H183: Kinsey Chandler | I183: Favorite Misstake | K183: 17.939
D184: S | G184: 49 | H184: Sherrel Burgess | I184: Boomer T Fellers | K184: 18.087
F185: X | G185: 86 | H185: Madeleine Moll | I185: Gearum Up Nick | K185: 18.161
D186: S | G186: 124 | H186: Johnell Ray | I186: Peppy San Smooth | K186: 18.182
E187: X | F187: X | G187: 83 | H187: Maddie Griffith | I187: HTR Balda Freckles | K187: 18.182
D188: S | G188: 78 | H188: Tammy Bransom | I188: Fly On Firewater | K188: 18.204
E189: X | F189: X | G189: 175 | H189: Callie Kohlenborg | I189: chestnut | K189: 18.21
G190: 104 | H190: Karen Hancock | I190: SS SecretSix | K190: 18.329
G191: 253 | H191: Trinity Brown | I191: Discos Daphne | K191: 18.386
F192: X | G192: 44 | H192: Jaelie Jaminet | I192: Bella | K192: 18.478
G193: 138 | H193: Julia Pogue | I193: BW YardBoss | K193: 18.619
G194: 82 | H194: Janee' Ornelas | I194: Frosty | K194: 18.726
G195: 232 | H195: Trinity Brown | I195: Hakan Brigadier | K195: 18.74
G196: 212 | H196: Dakota Danley | I196: Raise Your Style (horse 2) | K196: 19.995
G197: 31 | H197: Colt Tew | I197: Annie Guys Easy Jet | K197: 21.622
G198: 182 | H198: Adrein McFarland | I198: Pap Sugar | K198: 21.661
F199: X | G199: 200 | H199: Joy Deary | I199: No Blu Aqui | K199: 21.896
G200: 110 | H200: Julie Wright | I200: Charming Shaly | K200: 27.726
B201: X | D201: A | G201: 57 | H201: Tara Legg | I201: Sweet Timber Nickers | K201: broken | P201: =$P$9-$P$12 -> 
... 336 more rows

Sheet Senior
A1: Futurity | B1: Der | C1: Senior | D1: BBR | E1: Draw | F1: Rider Name | G1: Horse Name | H1: Pen | I1: Time | J1: Final Time | K1: Placing | L1: Money Earned
E2: 1 | F2: Tammy Rokus | G2: Mitey Confederate | I2: 15.932 | K2: 1D 1st | L2: 134
E3: 2 | F3: Lisa Wernli | G3: Flashs Fine Effort | I3: 16.087 | K3: 1D 2nd | L3: 90
E4: 3 | F4: Stacey Gates | G4: Ivys Been Charmed | I4: 16.216
E5: 4 | F5: Sherri Barnes | G5: Racing For Perks | I5: 16.24
E6: 5 | F6: Jenny Zant | G6: Raise Me Ta Fame | I6: 16.348
E7: 6 | F7: Laura Creel | G7: Frenchmans Docs Rx | I7: 16.496 | K7: 2D 1st | L7: 115
E8: 7 | F8: Jo Kirby | G8: Heavenly Joak | I8: 16.563 | K8: 2D 2nd | L8: 77
E9: 8 | F9: Dawn Fryar | G9: Special Bid Of Frost | I9: 16.566
E10: 9 | F10: Johnell Ray | G10: Smooth Your Jets | I10: 16.654
E11: 10 | F11: Sherri Barnes | G11: Famous Little jet | I11: 16.657
E12: 11 | F12: Debbie Richardson | G12: VF Going Big Time | I12: 16.683
E13: 12 | F13: Jolene Jones | G13: Peppys Streakof Fame | I13: 16.704
E14: 13 | F14: Lisa Wernli | G14: Babe On The Run | I14: 16.735
E15: 14 | F15: Simone Elmore | G15: Badger A Conchadrift | I15: 16.741
E16: 15 | F16: Debbie Bloxom | G16: Bad Fire Arising | I16: 16.814
E17: 16 | F17: Diana Ulery | G17: EZ Jackie Luv | I17: 16.958 | K17: 3D 1st | L17: 77
E18: 17 | F18: Renae Osborn | G18: Hurricane | I18: 16.976 | K18: 3D 2nd | L18: 51
E19: 18 | F19: Martha Jordan | G19: Fuel For Dash | I19: 16.992
E20: 19 | F20: Charlene Glover | G20: Chevy Cinderella | I20: 17.071
E21: 20 | F21: Karen Coskrey | G21: TS Dream Drifter | I21: 17.189
E22: 21 | F22: Renae Osborn | G22: Monkey | I22: 17.444 | K22: 4D 1st | L22: 58
E23: 22 | F23: Kim Eisen | G23: Velvet Special Gal | I23: 17.479 | K23: 4D 2nd | L23: 38
E24: 23 | F24: Lisa Corey | G24: Beda Dream | I24: 17.483
E25: 24 | F25: Tracie Schoenthal | G25: Gunsnfirewater | I25: 17.506
E26: 25 | F26: Patti Reardon | G26: HeCOme Dun | I26: 17.555
E27: 26 | F27: Marlyn Bland | G27: TK Lady Gotta Gun | I27: 17.679
E28: 27 | F28: Debra Cooper | G28: HugginAnativepepto | I28: 17.781
E29: 28 | F29: Sherrel Burgess | G29: Boomer T Fellers | I29: 18.087
E30: 29 | F30: Johnell Ray | G30: Peppy San Smooth | I30: 18.182
E31: 30 | F31: Tammy Bransom | G31: Fly On Firewater | I31: 18.204
E32: 31 | F32: Debbie Richardson | G32: Call Me Misty May | I32: N/T 16.875
E33: 32 | F33: Tracy McManus | I33: N/T 17.048
E34: 33
E35: 34
E36: 35
E37: 36
E38: 37
E39: 38
E40: 39
E41: 40
E42: 41
E43: 42
E44: 43
E45: 44
E46: 45
E47: 46
E48: 47
E49: 48
E50: 49
E51: 50
E52: 51
E53: 52
E54: 53
E55: 54
E56: 55
E57: 56
E58: 57
E59: 58
E60: 59
E61: 60
E62: 61
E63: 62
E64: 63
E65: 64
E66: 65
E67: 66
E68: 67
E69: 68
E70: 69
E71: 70
E72: 71
E73: 72
E74: 73
E75: 74
E76: 75
E77: 76
E78: 77
E79: 78
E80: 79
E81: 80
E82: 81
E83: 82
E84: 83
E85: 84
E86: 85
E87: 86
E88: 87
E89: 88
E90: 89
E91: 90
E92: 91
E93: 92
E94: 93
E95: 94
E96: 95
E97: 96
E98: 97
E99: 98
E100: 99
E101: 100
E102: 101
E103: 102
E104: 103
E105: 104
E106: 105
E107: 106
E108: 107
E109: 108
E110: 109
E111: 110
E112: 111
E113: 112
E114: 113
E115: 114
E116: 115
E117: 116
E118: 117
E119: 118
E120: 119
E121: 120
E122: 121
E123: 122
E124: 123
E125: 124
E126: 125
E127: 126
E128: 127
E129: 128
E130: 129
E131: 130
E132: 131 | J132: =IF(OR(H132=5,H132=10, H132=15, H132="BP",H132="SCR"),"NT",I132) -> 0
E133: 132 | J133: 0
E134: 133 | J134: 0
E135: 134 | J135: 0
E136: 135 | J136: 0
E137: 136 | J137: 0
E138: 137 | J138: 0
E139: 138 | J139: 0
E140: 139 | J140: 0
E141: 140 | J141: 0
E142: 141 | J142: 0
E143: 142 | J143: 0
E144: 143 | J144: 0
E145: 144 | J145: 0
E146: 145 | J146: 0
E147: 146 | J147: 0
E148: 147 | J148: 0
E149: 148 | J149: 0
E150: 149 | J150: 0
E151: 150 | J151: 0
E152: 151 | J152: 0
E153: 152 | J153: 0
E154: 153 | J154: 0
E155: 154 | J155: 0
E156: 155 | J156: 0
E157: 156 | J157: 0
E158: 157 | J158: 0
E159: 158 | J159: 0
E160: 159 | J160: 0
E161: 160 | J161: 0
E162: 161 | J162: 0
E163: 162 | J163: 0
E164: 163 | J164: 0
E165: 164 | J165: 0
E166: 165 | J166: 0
E167: 166 | J167: 0
E168: 167 | J168: 0
E169: 168 | J169: 0
E170: 169 | J170: 0
E171: 170 | J171: 0
E172: 171 | J172: 0
E173: 172 | J173: 0
E174: 173 | J174: 0
E175: 174 | J175: 0
E176: 175 | J176: 0
E177: 176 | J177: 0
E178: 177 | J178: 0
E179: 178 | J179: 0
E180: 179 | J180: 0
E181: 180 | J181: 0
E182: 181 | J182: 0
E183: 182 | J183: 0
E184: 183 | J184: 0
E185: 184 | J185: 0
E186: 185 | J186: 0
E187: 186 | J187: 0
E188: 187 | J188: 0
E189: 188 | J189: 0
E190: 189 | J190: 0
E191: 190 | J191: 0
E192: 191 | J192: 0
E193: 192 | J193: 0
E194: 193 | J194: 0
E195: 194 | J195: 0
E196: 195 | J196: 0
E197: 196 | J197: 0
E198: 197 | J198: 0
E199: 198 | J199: 0
E200: 199 | J200: 0
... 101 more rows

Sheet Adult
A1: Futurity | B1: Der | C1: Adult | D1: BBR | E1: Draw | F1: Rider Name | G1: Horse Name | H1: Pen | I1: Time | J1: Final Time | K1: Placing | L1: Money Earned
E2: 1 | F2: Kinsey Chandler | G2: Judge Knott | I2: 15.936 | K2: 1D 1st | L2: 122
E3: 2 | F3: Kylee Scribner | G3: Firewater Cartel | I3: 16.079 | K3: 1D 2nd | L3: 81
E4: 3 | F4: Stephanie Snazuk | G4: SR Ima Royal Streaker | I4: 16.275
E5: 4 | F5: Stephanie Fryar | G5: Some Streakin French | I5: 16.302
E6: 5 | F6: Stephanie Fryar | G6: Cant Stop The Feeling | I6: 16.445 | K6: 2D 1st | L6: 104
E7: 6 | F7: Daisy Baird | G7: Elishas Arrow | I7: 16.474 | K7: 2D 2nd | L7: 70
E8: 7 | F8: Bianca Dos Santos | G8: Dashin Quickly | I8: 16.569
E9: 8 | F9: Stephanie Fryar | G9: RR LaJolla Roll | I9: 16.711
E10: 9 | F10: Brian Ramirez | G10: Holly | I10: 16.715
E11: 10 | F11: Noah Grimes | G11: California Clone | I11: 16.721
E12: 11 | F12: Charlene Plate | G12: Blue Moon Frost | I12: 16.761
E13: 12 | F13: Elyse Busby | G13: EB Rippe Effect | I13: 16.992 | K13: 3D 1st | L13: 70
E14: 13 | F14: Jennifer Cullen | I14: 17.018 | K14: 3D 2nd | L14: 46
E15: 14 | F15: Blake Myers | G15: Luvondarocks | I15: 17.139
E16: 15 | F16: Toby Osteen | G16: HIGHSPEEDSONOFAFROST | I16: 17.163
E17: 16 | F17: Tiffany Durham | G17: Dashin Luke Perry | I17: 17.243
E18: 17 | F18: Jesse Budd | G18: Flicker Nic | I18: 17.25
E19: 18 | F19: Crystal Allred | G19: Lovemas Ghost | I19: 17.324 | K19: 4D 1st | L19: 52
E20: 19 | F20: Ashley Moore | G20: Mucho Fast Dave | I20: 17.593 | K20: 4D 2nd | L20: 35
E21: 20 | F21: Hollie Sirman | G21: Quick Boogie | I21: 17.611
E22: 21 | F22: Hollie Sirman | G22: Easter Bunny Special | I22: 17.718
E23: 22 | F23: Makinzie Wetmore | G23: Hotrod | I23: 17.87
E24: 23 | F24: Kinsey Chandler | G24: Favorite Misstake | I24: 17.939
E25: 24 | F25: Tara Legg | G25: Sweet Timber Nickers | I25: broken
E26: 25 | F26: Timberly Erickson | G26: Mines Fast | I26: N/T 18.451
E27: 26 | F27: Bianca Dos Santos | G27: One Famous Streaker | I27: N/T16.798
E28: 27 | F28: Crystal Allred | G28: Not A Berry Just A Jewel | I28: N/T18.551
E29: 28 | F29: Kendra Moore | G29: Spiderman | I29: nt16.331
E30: 29 | F30: Jacqueline Brockhurst | G30: Kids Star Dazzler | I30: nt16.930
E31: 30
E32: 31
E33: 32
E34: 33
E35: 34
E36: 35
E37: 36
E38: 37
E39: 38
E40: 39
E41: 40
E42: 41
E43: 42
E44: 43
E45: 44
E46: 45
E47: 46
E48: 47
E49: 48
E50: 49
E51: 50
E52: 51
E53: 52
E54: 53
E55: 54
E56: 55
E57: 56
E58: 57
E59: 58
E60: 59
E61: 60
E62: 61
E63: 62
E64: 63
E65: 64
E66: 65
E67: 66
E68: 67
E69: 68
E70: 69
E71: 70
E72: 71
E73: 72
E74: 73
E75: 74
E76: 75
E77: 76
E78: 77
E79: 78
E80: 79 | J80: =IF(OR(H80=5,H80=10, H80=15, H80="BP",H80="SCR"),"NT",I80) -> 0
E81: 80 | J81: 0
E82: 81 | J82: 0
E83: 82 | J83: 0
E84: 83 | J84: 0
E85: 84 | J85: 0
E86: 85 | J86: 0
E87: 86 | J87: 0
E88: 87 | J88: 0
E89: 88 | J89: 0
E90: 89 | J90: 0
E91: 90 | J91: 0
E92: 91 | J92: 0
E93: 92 | J93: 0
E94: 93 | J94: 0
E95: 94 | J95: 0
E96: 95 | J96: 0
E97: 96 | J97: 0
E98: 97 | J98: 0
E99: 98 | J99: 0
E100: 99 | J100: 0
E101: 100 | J101: 0
E102: 101 | J102: 0
E103: 102 | J103: 0
E104: 103 | J104: 0
E105: 104 | J105: 0
E106: 105 | J106: 0
E107: 106 | J107: 0
E108: 107 | J108: 0
E109: 108 | J109: 0
E110: 109 | J110: 0
E111: 110 | J111: 0
E112: 111 | J112: 0
E113: 112 | J113: 0
E114: 113 | J114: 0
E115: 114 | J115: 0
E116: 115 | J116: 0
E117: 116 | J117: 0
E118: 117 | J118: 0
E119: 118 | J119: 0
E120: 119 | J120: 0
E121: 120 | J121: 0
E122: 121 | J122: 0
E123: 122 | J123: 0
E124: 123 | J124: 0
E125: 124 | J125: 0
E126: 125 | J126: 0
E127: 126 | J127: 0
E128: 127 | J128: 0
E129: 128 | J129: 0
E130: 129 | J130: 0
E131: 130 | J131: 0
E132: 131 | J132: 0
E133: 132 | J133: 0
E134: 133 | J134: 0
E135: 134 | J135: 0
E136: 135 | J136: 0
E137: 136 | J137: 0
E138: 137 | J138: 0
E139: 138 | J139: 0
E140: 139 | J140: 0
E141: 140 | J141: 0
E142: 141 | J142: 0
E143: 142 | J143: 0
E144: 143 | J144: 0
E145: 144 | J145: 0
E146: 145 | J146: 0
E147: 146 | J147: 0
E148: 147 | J148: 0
E149: 148 | J149: 0
E150: 149 | J150: 0
E151: 150 | J151: 0
E152: 151 | J152: 0
E153: 152 | J153: 0
E154: 153 | J154: 0
E155: 154 | J155: 0
E156: 155 | J156: 0
E157: 156 | J157: 0
E158: 157 | J158: 0
E159: 158 | J159: 0
E160: 159 | J160: 0
E161: 160 | J161: 0
E162: 161 | J162: 0
E163: 162 | J163: 0
E164: 163 | J164: 0
E165: 164 | J165: 0
E166: 165 | J166: 0
E167: 166 | J167: 0
E168: 167 | J168: 0
E169: 168 | J169: 0
E170: 169 | J170: 0
E171: 170 | J171: 0
E172: 171 | J172: 0
E173: 172 | J173: 0
E174: 173 | J174: 0
E175: 174 | J175: 0
E176: 175 | J176: 0
E177: 176 | J177: 0
E178: 177 | J178: 0
E179: 178 | J179: 0
E180: 179 | J180: 0
E181: 180 | J181: 0
E182: 181 | J182: 0
E183: 182 | J183: 0
E184: 183 | J184: 0
E185: 184 | J185: 0
E186: 185 | J186: 0
E187: 186 | J187: 0
E188: 187 | J188: 0
E189: 188 | J189: 0
E190: 189 | J190: 0
E191: 190 | J191: 0
E192: 191 | J192: 0
E193: 192 | J193: 0
E194: 193 | J194: 0
E195: 194 | J195: 0
E196: 195 | J196: 0
E197: 196 | J197: 0
E198: 197 | J198: 0
E199: 198 | J199: 0
E200: 199 | J200: 0
... 101 more rows

Sheet Youth
A1: Futurity | B1: Der | C1: Age Inct. | D1: BBR | E1: Draw | F1: Rider Name | G1: Horse Name | H1: Pen | I1: Time | J1: Placing | K1: Money Earned
E2: 1 | F2: Brinley Howard | G2: Virginia | I2: 16.418 | J2: 1D 1st | K2: 118
E3: 2 | F3: Emma Nelson | G3: Rolex | I3: 16.47 | J3: 1D 2nd | K3: 78
E4: 3 | F4: Charlesee Gallaway | G4: Big As I Am Rare | I4: 16.907
E5: 4 | F5: Shawnee Hawk | G5: Fax Me A Sweet Mint | I5: 17.061 | J5: 2D 1st | K5: 101
E6: 5 | F6: Laurel Allred | G6: Quicks Blue Peppy | I6: 17.214 | J6: 2D 2nd | K6: 67
E7: 6 | F7: Taegan Sanders | G7: Whizzer Guy | I7: 17.355
E8: 7 | F8: Cooper Peek | G8: Dolly | I8: 17.357
E9: 8 | F9: Wimberlee Elliot | I9: 17.441 | J9: 3D 1st | K9: 67
E10: 9 | F10: Brinley Howard | G10: Dude | I10: 17.734 | J10: 3D 2nd | K10: 45
E11: 10 | F11: Madeleine Moll | G11: Vibrant Stylish Chic | I11: 17.826
E12: 11 | F12: Knoxlee Elliot | I12: 17.844
E13: 12 | F13: Mikayla Cearley | G13: TF PeppySmoken Savage | I13: 17.846
E14: 13 | F14: Madeleine Moll | G14: Gearum Up Nick | I14: 18.161 | J14: 4D 1st | K14: 50
E15: 14 | F15: Maddie Griffith | G15: HTR Balda Freckles | I15: 18.182 | J15: 4D 2md | K15: 34
E16: 15 | F16: Callie Kohlenborg | G16: chestnut | I16: 18.21
E17: 16 | F17: Jaelie Jaminet | G17: Bella | I17: 18.478
E18: 17 | F18: Joy Deary | G18: No Blu Aqui | I18: 21.896
E19: 18 | F19: Brooke Meier | G19: Socks | I19: N/T
E20: 19 | F20: Adrianna Ruckteschler | G20: Mr Spoon | I20: N/T 16.435
E21: 20 | F21: Emma Nelson | G21: BB | I21: nt16.990
E22: 21
E23: 22
E24: 23
E25: 24
E26: 25
E27: 26
E28: 27
E29: 28
E30: 29
E31: 30
E32: 31
E33: 32
E34: 33
E35: 34
E36: 35
E37: 36
E38: 37
E39: 38
E40: 39
E41: 40
E42: 41
E43: 42
E44: 43
E45: 44
E46: 45
E47: 46
E48: 47
E49: 48
E50: 49
E51: 50
E52: 51
E53: 52
E54: 53
E55: 54
E56: 55
E57: 56
E58: 57
E59: 58
E60: 59
E61: 60
E62: 61
E63: 62
E64: 63
E65: 64
E66: 65
E67: 66
E68: 67
E69: 68
E70: 69
E71: 70
E72: 71
E73: 72
E74: 73
E75: 74
E76: 75
E77: 76
E78: 77
E79: 78
E80: 79
E81: 80
E82: 81
E83: 82
E84: 83
E85: 84
E86: 85
E87: 86
E88: 87
E89: 88
E90: 89
E91: 90
E92: 91
E93: 92
E94: 93
E95: 94
E96: 95
E97: 96
E98: 97
E99: 98
E100: 99
E101: 100
E102: 101
E103: 102
E104: 103
E105: 104
E106: 105
E107: 106
E108: 107
E109: 108
E110: 109
E111: 110
E112: 111
E113: 112
E114: 113
E115: 114
E116: 115
E117: 116
E118: 117
E119: 118
E120: 119
E121: 120
E122: 121
E123: 122
E124: 123
E125: 124
E126: 125
E127: 126
E128: 127
E129: 128
E130: 129
E131: 130
E132: 131
E133: 132
E134: 133
E135: 134
E136: 135
E137: 136
E138: 137
E139: 138
E140: 139
E141: 140
E142: 141
E143: 142
E144: 143
E145: 144
E146: 145
E147: 146
E148: 147
E149: 148
E150: 149
E151: 150
E152: 151
E153: 152
E154: 153
E155: 154
E156: 155
E157: 156
E158: 157
E159: 158
E160: 159
E161: 160
E162: 161
E163: 162
E164: 163
E165: 164
E166: 165
E167: 166
E168: 167
E169: 168
E170: 169
E171: 170
E172: 171
E173: 172
E174: 173
E175: 174
E176: 175
E177: 176
E178: 177
E179: 178
E180: 179
E181: 180
E182: 181
E183: 182
E184: 183
E185: 184
E186: 185
E187: 186
E188: 187
E189: 188
E190: 189
E191: 190
E192: 191
E193: 192
E194: 193
E195: 194
E196: 195
E197: 196
E198: 197
E199: 198
E200: 199
... 101 more rows

Sheet Derby
A1: Futurity | B1: Der | C1: Age Inct. | D1: BBR | E1: Draw | F1: Rider Name | G1: Horse Name | H1: c/o | I1: Time | J1: Final Time | K1: Placing | L1: Money Earned
E2: 1 | F2: Amanda Clark | G2: Dancin For Fame | I2: 16.02 | K2: 1st | L2: 192
E3: 2 | F3: Nisa Berry | G3: NB Keep N Time | I3: 16.106 | K3: 2nd | L3: 128
E4: 3 | F4: Stacey Gates | G4: Ivys Been Charmed | I4: 16.216
E5: 4 | F5: Jamie Olsen | G5: Miss Famous Beduino | I5: 16.234
E6: 5 | F6: Stephanie Fryar | G6: Some Streakin French | I6: 16.302
E7: 6 | F7: Krista Lucas | G7: TBR Streak Of Perks | I7: 17.264
E8: 7 | F8: Nisa Berry | G8: A Kings Famous Fling | I8: broken
E9: 8 | F9: Tara Legg | G9: Sweet Timber Nickers | I9: broken
E10: 9
E11: 10
E12: 11
E13: 13
E14: 14
E15: 15
E16: 16
E17: 17
E18: 18
E19: 19
E20: 20
E21: 21
E22: 22
E23: 23
E24: 24
E25: 25
E26: 26
E27: 27
E28: 28
E29: 29
E30: 30
E31: 31
E32: 32
E33: 33
E34: 34
E35: 35
E36: 36
E37: 37
E38: 38
E39: 39
E40: 40
E41: 41
E42: 42
E43: 43
E44: 44
E45: 45
E46: 46
E47: 47 | J47: =IF(OR(H47=5,H47=10, H47=15, H47="BP",H47="SCR"),"NT",I47) -> 0
E48: 48 | J48: 0
E49: 49 | J49: 0
E50: 50 | J50: 0
E51: 51 | J51: 0
E52: 52 | J52: 0
E53: 53 | J53: 0
E54: 54 | J54: 0
E55: 55 | J55: 0
E56: 56 | J56: 0
E57: 57 | J57: 0
E58: 58 | J58: 0
E59: 59 | J59: 0
E60: 60 | J60: 0
E61: 61 | J61: 0
E62: 62 | J62: 0
E63: 63 | J63: 0
E64: 64 | J64: 0
E65: 65 | J65: 0
E66: 66 | J66: 0
E67: 67 | J67: 0
E68: 68 | J68: 0
E69: 69 | J69: 0
E70: 70 | J70: 0
E71: 71 | J71: 0
E72: 72 | J72: 0
E73: 73 | J73: 0
E74: 74 | J74: 0
E75: 75 | J75: 0
E76: 76 | J76: 0
E77: 77 | J77: 0
E78: 78 | J78: 0
E79: 79 | J79: 0
E80: 80 | J80: 0
E81: 81 | J81: 0
E82: 82 | J82: 0
E83: 83 | J83: 0
E84: 84 | J84: 0
E85: 85 | J85: 0
E86: 86 | J86: 0
E87: 87 | J87: 0
E88: 88 | J88: 0
E89: 89 | J89: 0
E90: 90 | J90: 0
E91: 91 | J91: 0
E92: 92 | J92: 0
E93: 93 | J93: 0
E94: 94 | J94: 0
E95: 95 | J95: 0
E96: 96 | J96: 0
E97: 97 | J97: 0
E98: 98 | J98: 0
E99: 99 | J99: 0
E100: 100 | J100: 0
E101: 101 | J101: 0
E102: 102 | J102: 0
E103: 103 | J103: 0
E104: 104 | J104: 0
E105: 105 | J105: 0
E106: 106 | J106: 0
E107: 107 | J107: 0
E108: 108 | J108: 0
E109: 109 | J109: 0
E110: 110 | J110: 0
E111: 111 | J111: 0
E112: 112 | J112: 0
E113: 113 | J113: 0
E114: 114 | J114: 0
E115: 115 | J115: 0
E116: 116 | J116: 0
E117: 117 | J117: 0
E118: 118 | J118: 0
E119: 119 | J119: 0
E120: 120 | J120: 0
E121: 121 | J121: 0
E122: 122 | J122: 0
E123: 123 | J123: 0
E124: 124 | J124: 0
E125: 125 | J125: 0
E126: 126 | J126: 0
E127: 127 | J127: 0
E128: 128 | J128: 0
E129: 129 | J129: 0
E130: 130 | J130: 0
E131: 131 | J131: 0
E132: 132 | J132: 0
E133: 133 | J133: 0
E134: 134 | J134: 0
E135: 135 | J135: 0
E136: 136 | J136: 0
E137: 137 | J137: 0
E138: 138 | J138: 0
E139: 139 | J139: 0
E140: 140 | J140: 0
E141: 141 | J141: 0
E142: 142 | J142: 0
E143: 143 | J143: 0
E144: 144 | J144: 0
E145: 145 | J145: 0
E146: 146 | J146: 0
E147: 147 | J147: 0
E148: 148 | J148: 0
E149: 149 | J149: 0
E150: 150 | J150: 0
E151: 151 | J151: 0
E152: 152 | J152: 0
E153: 153 | J153: 0
E154: 154 | J154: 0
E155: 155 | J155: 0
E156: 156 | J156: 0
E157: 157 | J157: 0
E158: 158 | J158: 0
E159: 159 | J159: 0
E160: 160 | J160: 0
E161: 161 | J161: 0
E162: 162 | J162: 0
E163: 163 | J163: 0
E164: 164 | J164: 0
E165: 165 | J165: 0
E166: 166 | J166: 0
E167: 167 | J167: 0
E168: 168 | J168: 0
E169: 169 | J169: 0
E170: 170 | J170: 0
E171: 171 | J171: 0
E172: 172 | J172: 0
E173: 173 | J173: 0
E174: 174 | J174: 0
E175: 175 | J175: 0
E176: 176 | J176: 0
E177: 177 | J177: 0
E178: 178 | J178: 0
E179: 179 | J179: 0
E180: 180 | J180: 0
E181: 181 | J181: 0
E182: 182 | J182: 0
E183: 183 | J183: 0
E184: 184 | J184: 0
E185: 185 | J185: 0
E186: 186 | J186: 0
E187: 187 | J187: 0
E188: 188 | J188: 0
E189: 189 | J189: 0
E190: 190 | J190: 0
E191: 191 | J191: 0
E192: 192 | J192: 0
E193: 193 | J193: 0
E194: 194 | J194: 0
E195: 195 | J195: 0
E196: 196 | J196: 0
E197: 197 | J197: 0
E198: 198 | J198: 0
E199: 199 | J199: 0
E200: 200 | J200: 0
... 100 more rows

Sheet Highstakes
A1: HS | B1: Der | C1: Age Inct. | D1: BBR | E1: Draw | F1: Rider Name | G1: Horse Name | H1: c/o | I1: Time | J1: Final Time | K1: Placing | L1: Money Earned
E2: 1 | F2: Kylee Scribner | G2: Firewater Cartel | I2: 16.079 | K2: 1st | L2: 320
E3: 2 | F3: Stacey Gates | G3: Ivys Been Charmed | I3: 16.216
E4: 3 | F4: Jennilee Thompson | G4: Chicks Share Of Fame | I4: 16.507
E5: 4 | F5: Mike Robertson | G5: Sweet Kinda Lion | I5: N/T 27.932
E6: 5
E7: 6
E8: 7
E9: 8
E10: 9
E11: 10
E12: 11
E13: 12
E14: 13
E15: 14
E16: 15
E17: 16
E18: 17
E19: 18
E20: 19
E21: 20
E22: 21
E23: 22
E24: 23
E25: 24
E26: 25
E27: 26
E28: 27
E29: 28
E30: 29
E31: 30
E32: 31
E33: 32
E34: 33
E35: 34
E36: 35
E37: 36
E38: 37
E39: 38
E40: 39
E41: 40
E42: 41
E43: 42
E44: 43
E45: 44 | J45: =IF(OR(H45=5,H45=10, H45=15, H45="BP",H45="SCR"),"NT",I45) -> 0
E46: 45 | J46: 0
E47: 46 | J47: 0
E48: 47 | J48: 0
E49: 48 | J49: 0
E50: 49 | J50: 0
E51: 50 | J51: 0
E52: 51 | J52: 0
E53: 52 | J53: 0
E54: 53 | J54: 0
E55: 54 | J55: 0
E56: 55 | J56: 0
E57: 56 | J57: 0
E58: 57 | J58: 0
E59: 58 | J59: 0
E60: 59 | J60: 0
E61: 60 | J61: 0
E62: 61 | J62: 0
E63: 62 | J63: 0
E64: 63 | J64: 0
E65: 64 | J65: 0
E66: 65 | J66: 0
E67: 66 | J67: 0
E68: 67 | J68: 0
E69: 68 | J69: 0
E70: 69 | J70: 0
E71: 70 | J71: 0
E72: 71 | J72: 0
E73: 72 | J73: 0
E74: 73 | J74: 0
E75: 74 | J75: 0
E76: 75 | J76: 0
E77: 76 | J77: 0
E78: 77 | J78: 0
E79: 78 | J79: 0
E80: 79 | J80: 0
E81: 80 | J81: 0
E82: 81 | J82: 0
E83: 82 | J83: 0
E84: 83 | J84: 0
E85: 84 | J85: 0
E86: 85 | J86: 0
E87: 86 | J87: 0
E88: 87 | J88: 0
E89: 88 | J89: 0
E90: 89 | J90: 0
E91: 90 | J91: 0
E92: 91 | J92: 0
E93: 92 | J93: 0
E94: 93 | J94: 0
E95: 94 | J95: 0
E96: 95 | J96: 0
E97: 96 | J97: 0
E98: 97 | J98: 0
E99: 98 | J99: 0
E100: 99 | J100: 0
E101: 100 | J101: 0
E102: 101 | J102: 0
E103: 102 | J103: 0
E104: 103 | J104: 0
E105: 104 | J105: 0
E106: 105 | J106: 0
E107: 106 | J107: 0
E108: 107 | J108: 0
E109: 108 | J109: 0
E110: 109 | J110: 0
E111: 110 | J111: 0
E112: 111 | J112: 0
E113: 112 | J113: 0
E114: 113 | J114: 0
E115: 114 | J115: 0
E116: 115 | J116: 0
E117: 116 | J117: 0
E118: 117 | J118: 0
E119: 118 | J119: 0
E120: 119 | J120: 0
E121: 120 | J121: 0
E122: 121 | J122: 0
E123: 122 | J123: 0
E124: 123 | J124: 0
E125: 124 | J125: 0
E126: 125 | J126: 0
E127: 126 | J127: 0
E128: 127 | J128: 0
E129: 128 | J129: 0
E130: 129 | J130: 0
E131: 130 | J131: 0
E132: 131 | J132: 0
E133: 132 | J133: 0
E134: 133 | J134: 0
E135: 134 | J135: 0
E136: 135 | J136: 0
E137: 136 | J137: 0
E138: 137 | J138: 0
E139: 138 | J139: 0
E140: 139 | J140: 0
E141: 140 | J141: 0
E142: 141 | J142: 0
E143: 142 | J143: 0
E144: 143 | J144: 0
E145: 144 | J145: 0
E146: 145 | J146: 0
E147: 146 | J147: 0
E148: 147 | J148: 0
E149: 148 | J149: 0
E150: 149 | J150: 0
E151: 150 | J151: 0
E152: 151 | J152: 0
E153: 152 | J153: 0
E154: 153 | J154: 0
E155: 154 | J155: 0
E156: 155 | J156: 0
E157: 156 | J157: 0
E158: 157 | J158: 0
E159: 158 | J159: 0
E160: 159 | J160: 0
E161: 160 | J161: 0
E162: 161 | J162: 0
E163: 162 | J163: 0
E164: 163 | J164: 0
E165: 164 | J165: 0
E166: 165 | J166: 0
E167: 166 | J167: 0
E168: 167 | J168: 0
E169: 168 | J169: 0
E170: 169 | J170: 0
E171: 170 | J171: 0
E172: 171 | J172: 0
E173: 172 | J173: 0
E174: 173 | J174: 0
E175: 174 | J175: 0
E176: 175 | J176: 0
E177: 176 | J177: 0
E178: 177 | J178: 0
E179: 178 | J179: 0
E180: 179 | J180: 0
E181: 180 | J181: 0
E182: 181 | J182: 0
E183: 182 | J183: 0
E184: 183 | J184: 0
E185: 184 | J185: 0
E186: 185 | J186: 0
E187: 186 | J187: 0
E188: 187 | J188: 0
E189: 188 | J189: 0
E190: 189 | J190: 0
E191: 190 | J191: 0
E192: 191 | J192: 0
E193: 192 | J193: 0
E194: 193 | J194: 0
E195: 194 | J195: 0
E196: 195 | J196: 0
E197: 196 | J197: 0
E198: 197 | J198: 0
E199: 198 | J199: 0
E200: 199 | J200: 0
... 101 more rows

Sheet Futurity
A1: Futurity | B1: Der | C1: Age Inct. | D1: BBR | E1: Draw | F1: Rider Name | G1: Horse Name | H1: c/o | I1: Time | J1: Final Time | K1: Placing | L1: Money Earned
E2: 1 | F2: Kylee Scribner | G2: Firewater Cartel | I2: 16.079 | K2: 1D 1st | L2: 192
E3: 2 | F3: Janna Brown | G3: Spark N Lion | I3: 16.196
E4: 3 | F4: Krista Whitley | G4: Fabulace Fame | I4: 16.347
E5: 4 | F5: Janna Brown | G5: Jets Top Gun | I5: 16.38
E6: 5 | F6: Stephanie Fryar | G6: Cant Stop The Feeling | I6: 16.445
E7: 6 | F7: Ginger Billingsley | G7: AllJOkesalide | I7: 16.466
E8: 7 | F8: Jolene Jones | G8: Peppys Streakof Fame | I8: 16.704 | K8: 2D 1st | L8: 128
E9: 8 | F9: Kristen Hendewerk | G9: Tennessee Fuel | I9: N/T16.788
E10: 9
E11: 10
E12: 11
E13: 12
E14: 13
E15: 14
E16: 15
E17: 16
E18: 17
E19: 18
E20: 19
E21: 20
E22: 21
E23: 22
E24: 23
E25: 24
E26: 25
E27: 26
E28: 27
E29: 28
E30: 29
E31: 30
E32: 31
E33: 32
E34: 33
E35: 34
E36: 35
E37: 36
E38: 37
E39: 38
E40: 39
E41: 40
E42: 41
E43: 42
E44: 43
E45: 44
E46: 45
E47: 46
E48: 47
E49: 48
E50: 49
E51: 50 | J51: =IF(OR(H51=5,H51=10, H51=15, H51="BP",H51="SCR"),"NT",I51) -> 0
E52: 51 | J52: 0
E53: 52 | J53: 0
E54: 53 | J54: 0
E55: 54 | J55: 0
E56: 55 | J56: 0
E57: 56 | J57: 0
E58: 57 | J58: 0
E59: 58 | J59: 0
E60: 59 | J60: 0
E61: 60 | J61: 0
E62: 61 | J62: 0
E63: 62 | J63: 0
E64: 63 | J64: 0
E65: 64 | J65: 0
E66: 65 | J66: 0
E67: 66 | J67: 0
E68: 67 | J68: 0
E69: 68 | J69: 0
E70: 69 | J70: 0
E71: 70 | J71: 0
E72: 71 | J72: 0
E73: 72 | J73: 0
E74: 73 | J74: 0
E75: 74 | J75: 0
E76: 75 | J76: 0
E77: 76 | J77: 0
E78: 77 | J78: 0
E79: 78 | J79: 0
E80: 79 | J80: 0
E81: 80 | J81: 0
E82: 81 | J82: 0
E83: 82 | J83: 0
E84: 83 | J84: 0
E85: 84 | J85: 0
E86: 85 | J86: 0
E87: 86 | J87: 0
E88: 87 | J88: 0
E89: 88 | J89: 0
E90: 89 | J90: 0
E91: 90 | J91: 0
E92: 91 | J92: 0
E93: 92 | J93: 0
E94: 93 | J94: 0
E95: 94 | J95: 0
E96: 95 | J96: 0
E97: 96 | J97: 0
E98: 97 | J98: 0
E99: 98 | J99: 0
E100: 99 | J100: 0
E101: 100 | J101: 0
E102: 101 | J102: 0
E103: 102 | J103: 0
E104: 103 | J104: 0
E105: 104 | J105: 0
E106: 105 | J106: 0
E107: 106 | J107: 0
E108: 107 | J108: 0
E109: 108 | J109: 0
E110: 109 | J110: 0
E111: 110 | J111: 0
E112: 111 | J112: 0
E113: 112 | J113: 0
E114: 113 | J114: 0
E115: 114 | J115: 0
E116: 115 | J116: 0
E117: 116 | J117: 0
E118: 117 | J118: 0
E119: 118 | J119: 0
E120: 119 | J120: 0
E121: 120 | J121: 0
E122: 121 | J122: 0
E123: 122 | J123: 0
E124: 123 | J124: 0
E125: 124 | J125: 0
E126: 125 | J126: 0
E127: 126 | J127: 0
E128: 127 | J128: 0
E129: 128 | J129: 0
E130: 129 | J130: 0
E131: 130 | J131: 0
E132: 131 | J132: 0
E133: 132 | J133: 0
E134: 133 | J134: 0
E135: 134 | J135: 0
E136: 135 | J136: 0
E137: 136 | J137: 0
E138: 137 | J138: 0
E139: 138 | J139: 0
E140: 139 | J140: 0
E141: 140 | J141: 0
E142: 141 | J142: 0
E143: 142 | J143: 0
E144: 143 | J144: 0
E145: 144 | J145: 0
E146: 145 | J146: 0
E147: 146 | J147: 0
E148: 147 | J148: 0
E149: 148 | J149: 0
E150: 149 | J150: 0
E151: 150 | J151: 0
E152: 151 | J152: 0
E153: 152 | J153: 0
E154: 153 | J154: 0
E155: 154 | J155: 0
E156: 155 | J156: 0
E157: 156 | J157: 0
E158: 157 | J158: 0
E159: 158 | J159: 0
E160: 159 | J160: 0
E161: 160 | J161: 0
E162: 161 | J162: 0
E163: 162 | J163: 0
E164: 163 | J164: 0
E165: 164 | J165: 0
E166: 165 | J166: 0
E167: 166 | J167: 0
E168: 167 | J168: 0
E169: 168 | J169: 0
E170: 169 | J170: 0
E171: 170 | J171: 0
E172: 171 | J172: 0
E173: 172 | J173: 0
E174: 173 | J174: 0
E175: 174 | J175: 0
E176: 175 | J176: 0
E177: 176 | J177: 0
E178: 177 | J178: 0
E179: 178 | J179: 0
E180: 179 | J180: 0
E181: 180 | J181: 0
E182: 181 | J182: 0
E183: 182 | J183: 0
E184: 183 | J184: 0
E185: 184 | J185: 0
E186: 185 | J186: 0
E187: 186 | J187: 0
E188: 187 | J188: 0
E189: 188 | J189: 0
E190: 189 | J190: 0
E191: 190 | J191: 0
E192: 191 | J192: 0
E193: 192 | J193: 0
E194: 193 | J194: 0
E195: 194 | J195: 0
E196: 195 | J196: 0
E197: 196 | J197: 0
E198: 197 | J198: 0
E199: 198 | J199: 0
E200: 199 | J200: 0
... 101 more rows

Sheet 12 & Under (hidden)
A1: Futurity | B1: Der | C1: Age Inct. | D1: R/O | E1: Draw | F1: Rider Name | G1: Horse Name | H1: Time | I1: Final Time | J1: Placing | K1: Money Earned
E33: 32
E34: 33
E35: 34
E36: 35
E37: 36
E38: 37
E39: 38
E40: 39
E41: 40
E42: 41
E43: 42
E44: 43
E45: 44
E46: 45
E47: 46
E48: 47
E49: 48
E50: 49
E51: 50
E52: 51
E53: 52
E54: 53
E55: 54
E56: 55
E57: 56
E58: 57
E59: 58
E60: 59
E61: 60
E62: 61
E63: 62
E64: 63
E65: 64
E66: 65
E67: 66
E68: 67
E69: 68
E70: 69
E71: 70
E72: 71
E73: 72
E74: 73
E75: 74
E76: 75
E77: 76
E78: 77
E79: 78
E80: 79
E81: 80
E82: 81
E83: 82
E84: 83
E85: 84
E86: 85
E87: 86
E88: 87
E89: 88
E90: 89
E91: 90
E92: 91
E93: 92
E94: 93
E95: 94
E96: 95
E97: 96
E98: 97
E99: 98
E100: 99
E101: 100
E102: 101
E103: 102
E104: 103
E105: 104
E106: 105
E107: 106
E108: 107
E109: 108
E110: 109
E111: 110
E112: 111
E113: 112
E114: 113
E115: 114
E116: 115
E117: 116
E118: 117
E119: 118
E120: 119
E121: 120
E122: 121
E123: 122
E124: 123
E125: 124
E126: 125
E127: 126
E128: 127
E129: 128
E130: 129
E131: 130
E132: 131
E133: 132
E134: 133
E135: 134
E136: 135
E137: 136
E138: 137
E139: 138
E140: 139
E141: 140
E142: 141
E143: 142
E144: 143
E145: 144
E146: 145
E147: 146
E148: 147
E149: 148
E150: 149
E151: 150
E152: 151
E153: 152
E154: 153
E155: 154
E156: 155
E157: 156
E158: 157
E159: 158
E160: 159
E161: 160
E162: 161
E163: 162
E164: 163
E165: 164
E166: 165
E167: 166
E168: 167
E169: 168
E170: 169
E171: 170
E172: 171
E173: 172
E174: 173
E175: 174
E176: 175
E177: 176
E178: 177
E179: 178
E180: 179
E181: 180
E182: 181
E183: 182
E184: 183
E185: 184
E186: 185
E187: 186
E188: 187
E189: 188
E190: 189
E191: 190
E192: 191
E193: 192
E194: 193
E195: 194
E196: 195
E197: 196
E198: 197
E199: 198
E200: 199
E201: 200
E202: 201
E203: 202
E204: 203
E205: 204
E206: 205
E207: 206
E208: 207
E209: 208
E210: 209
E211: 210
E212: 211
E213: 212
E214: 213
E215: 214
E216: 215
E217: 216
E218: 217
E219: 218
E220: 219
E221: 220
E222: 221
E223: 222
E224: 223
E225: 224
E226: 225
E227: 226
E228: 227
E229: 228
E230: 229
E231: 230
... 70 more rows

Sheet Future champs (hidden)
A1: Draw | B1: Rider Name | C1: Horse Name | D1: Pen | E1: Time | F1: Final Time | G1: Placing | H1: Money Earned
A2: 1 | B2: Reata Worthington | C2: Rooster | E2: 19.417
A3: 2 | B3: Bryce Cain | C3: Dunny | E3: 22.376
A4: 3 | B4: Bryson Rawson | E4: 27.75
A5: 4 | B5: Taela Taminet | C5: Ducky | E5: 35.002
A6: 5 | B6: Oaklee Elliott | C6: Dusty | E6: 38.618
A7: 6 | B7: Maxine McGehee | C7: Bernie | E7: 44.682
A8: 7 | B8: Lawson Kimball | E8: 49.061
A9: 8 | B9: Breelyn Black | C9: Poptart | E9: 64.318
A10: 9 | B10: Annabelle Alexander | C10: A Master Blueprint | E10: broken
A11: 10 | B11: Annabelle Alexander | C11: Fancy Flucy | E11: broken
A12: 11 | B12: Joy Deary | C12: No Blu Aqui | E12: nt21.344
A13: 12
A14: 13
A15: 14
A16: 15
A17: 16
A18: 17 | F18: =IF(OR(D18=5,D18=10, D18=15, D18="BP",D18="SCR"),"NT",E18) -> 0
A19: 18 | F19: 0
A20: 19 | F20: 0
A21: 20 | F21: 0

Sheet Average
A1: Parker County Arena
A2: Open
A3: 4 Yr Fut | B3: 5 Yr Fut | C3: Der | D3: Age Inct. | E3: Am | F3: Carry | G3: T/C | H3: F/F | I3: Mem | J3: Nom | K3: Av | L3: BBR | M3: WPRA | N3: Draw | O3: Owner Name | P3: Rider Name | Q3: Horse Name | R3: Pen | S3: Time 1 | T3: Final Time 1 | U3: Pen | V3: Time 2 | W3: Final Time 2 | X3: Total Time | Y3: Average Time | Z3: Placing | AA3: Money Earned | AC3: D Placing | AE3: Split
N4: 1 | P4: Kinsey Chandler | Q4: Judge Knott | S4: 15.816 | T4: =IF(OR(R4=5,R4=10, R4=15, R4="BP",R4="SCR"),"NT",S4) -> 15.816 | V4: 15.936 | W4: =IF(OR(U4=5,U4=10, U4=15, U4="BP",U4="SCR"),"NT",V4) -> 15.936 | X4: =(T4+W4) -> 31.752 | Y4: =(T4+W4)/2 -> 15.876 | AC4: 1D
N5: 2 | P5: Stephanie Snazuk | Q5: SR Ima Royal Streaker | S5: 15.852 | T5: 15.852 | V5: 16.275 | W5: 16.275 | X5: 32.127 | Y5: 16.0635 | AC5: 2D | AD5: =$AD$4+$AE$5 -> 0.5 | AE5: 0.5
N6: 3 | O6: 1D AVERAGE | P6: Payton Schoeppach | Q6: The Mafia Boss | S6: 15.865 | T6: 15.865 | V6: 15.75 | W6: 15.75 | X6: 31.615 | Y6: 15.8075 | AC6: 3D | AD6: =$AD$5+$AE$6 -> 1 | AE6: 0.5
N7: 4 | P7: Lisa Wernli | Q7: Flashes Fine Effort | S7: 16.061 | T7: 16.061 | V7: 16.087 | W7: 16.087 | X7: 32.148 | Y7: 16.074 | AC7: 4D | AD7: =$AD$6+$AE$7 -> 1.5 | AE7: 0.5
N8: 5 | P8: Lacy Kimball | Q8: Stayabay | S8: 16.077 | T8: 16.077 | V8: 16.236 | W8: 16.236 | X8: 32.313 | Y8: 16.1565 | AC8: 5D | AD8: =$AD$7+$AE$8 -> 2 | AE8: 0.5
N9: 6 | P9: Jamie Olsen | Q9: Miss Famous Bedueno | S9: 16.079 | T9: 16.079 | V9: 16.234 | W9: 16.234 | X9: 32.313 | Y9: 16.1565
N10: 7 | P10: Amanda Clark | Q10: Dancin For Fame | S10: 16.09 | T10: 16.09 | V10: 16.02 | W10: 16.02 | X10: 32.11 | Y10: 16.055 | AC10: # Entered
N11: 8 | P11: Hillary Hightower | Q11: Hanks Bug Bomber | S11: 16.097 | T11: 16.097 | V11: 16.384 | W11: 16.384 | X11: 32.481 | Y11: 16.2405 | AC11: =COUNTA(P4:P503) -> 222
N12: 9 | P12: Becky Dillard | Q12: Shesa Hot Loop | S12: 16.13 | T12: 16.13 | V12: 16.257 | W12: 16.257 | X12: 32.387 | Y12: 16.1935
N13: 10 | P13: Christi Durfey | Q13: Jess Blazin Otoe | S13: 16.147 | T13: 16.147 | W13: 0 | X13: 16.147 | Y13: 8.0735
N14: 11 | P14: Becky Dillard | Q14: Wow Shes Hot | S14: 16.17 | T14: 16.17 | W14: 0 | X14: 16.17 | Y14: 8.085
N15: 12 | P15: Cassidy Rabb | Q15: VF Temptations | S15: 16.191 | T15: 16.191 | W15: 0 | X15: 16.191 | Y15: 8.0955
N16: 13 | P16: Mike Robertson | Q16: Simba The Texas Jet | S16: 16.193 | T16: 16.193 | W16: 0 | X16: 16.193 | Y16: 8.0965
N17: 14 | P17: Jenny Zant | Q17: Raise Me Ta Fame | S17: 16.204 | T17: 16.204 | V17: 16.348 | W17: 16.348 | X17: 32.552 | Y17: 16.276
N18: 15 | P18: Davie King | Q18: Rhonda | S18: 16.242 | T18: 16.242 | W18: 0 | X18: 16.242 | Y18: 8.121
N19: 16 | P19: Nisa Berry | Q19: NB Keep N Time | S19: 16.244 | T19: 16.244 | V19: 16.106 | W19: 16.106 | X19: 32.35 | Y19: 16.175
N20: 17 | O20: 2D AVERAGE | P20: Krista Whitley | Q20: Fabulace Fame | S20: 16.28 | T20: 16.28 | V20: 16.347 | W20: 16.347 | X20: 32.627 | Y20: 16.3135
N21: 18 | P21: Jackie Whitcher | Q21: Blackjack Bay | S21: 16.295 | T21: 16.295 | W21: 0 | X21: 16.295 | Y21: 8.1475
N22: 19 | P22: Kayli Morris | Q22: Fortune N Fuel | S22: 16.299 | T22: 16.299 | W22: 0 | X22: 16.299 | Y22: 8.1495
N23: 20 | P23: Heidi Becker | Q23: No Lion Kims Flying | S23: 16.32 | T23: 16.32 | W23: 0 | X23: 16.32 | Y23: 8.16
N24: 21 | P24: Bianca Dos Santos | Q24: Dashin Quickly | S24: 16.324 | T24: 16.324 | V24: 16.569 | W24: 16.569 | X24: 32.893 | Y24: 16.4465
N25: 22 | P25: Kappie Bryant | Q25: Party Rocker | S25: 16.329 | T25: 16.329 | W25: 0 | X25: 16.329 | Y25: 8.1645
N26: 23 | P26: Hadley Durfey | Q26: Delightful Brownies | S26: 16.342 | T26: 16.342 | W26: 0 | X26: 16.342 | Y26: 8.171
N27: 24 | P27: Lacey Harmon | Q27: Designed To Gab | S27: 16.344 | T27: 16.344 | W27: 0 | X27: 16.344 | Y27: 8.172
N28: 25 | P28: Mandy Smith | Q28: Madaconfederatetwist | S28: 16.364 | T28: 16.364 | V28: 16.618 | W28: 16.618 | X28: 32.982 | Y28: 16.491
N29: 26 | P29: Lisa Lucia | Q29: Sticks Chic | S29: 16.385 | T29: 16.385 | W29: 0 | X29: 16.385 | Y29: 8.1925
N30: 27 | P30: Amy Swan | Q30: Boons Prescription | S30: 16.392 | T30: 16.392 | W30: 0 | X30: 16.392 | Y30: 8.196
N31: 28 | P31: Lynn Saunders | Q31: Chumley | S31: 16.397 | T31: 16.397 | W31: 0 | X31: 16.397 | Y31: 8.1985
N32: 29 | P32: Nikki Cain | Q32: Shakem Baby Shakem | S32: 16.433 | T32: 16.433 | V32: 16.644 | W32: 16.644 | X32: 33.077 | Y32: 16.5385
N33: 30 | P33: Karen Gaida | Q33: Kiss This Guy Too | S33: 16.435 | T33: 16.435 | V33: 16.63 | W33: 16.63 | X33: 33.065 | Y33: 16.5325
N34: 31 | P34: Lisa Wernli | Q34: Babe On The Run | S34: 16.44 | T34: 16.44 | V34: 16.735 | W34: 16.735 | X34: 33.175 | Y34: 16.5875
N35: 32 | P35: Sage Tomeu | Q35: Stella | S35: 16.441 | T35: 16.441 | W35: 0 | X35: 16.441 | Y35: 8.2205
N36: 33 | P36: Maggie Pytlik | Q36: Karma | S36: 16.448 | T36: 16.448 | W36: 0 | X36: 16.448 | Y36: 8.224
N37: 34 | P37: Nikki Cain | Q37: Smooth Finances | S37: 16.463 | T37: 16.463 | V37: 16.559 | W37: 16.559 | X37: 33.022 | Y37: 16.511
N38: 35 | P38: Katie Perkins | Q38: Carmella | S38: 16.465 | T38: 16.465 | V38: 16.379 | W38: 16.379 | X38: 32.844 | Y38: 16.422
N39: 36 | P39: Nisa Berry | Q39: Banking Ta Fame | S39: 16.476 | T39: 16.476 | W39: 0 | X39: 16.476 | Y39: 8.238
N40: 37 | P40: Jana Stripe | Q40: Kc High Pick | S40: 16.482 | T40: 16.482 | W40: 0 | X40: 16.482 | Y40: 8.241
N41: 38 | P41: Amanda Clark | Q41: Dillon Remedy | S41: 16.482 | T41: 16.482 | V41: 16.211 | W41: 16.211 | X41: 32.693 | Y41: 16.3465
N42: 39 | P42: Savannah Mantooth | Q42: Feature Me French | S42: 16.492 | T42: 16.492 | V42: 16.516 | W42: 16.516 | X42: 33.008 | Y42: 16.504
N43: 40 | P43: Mike Robertson | Q43: Sweet Kinda Lion | S43: 16.499 | T43: 16.499 | W43: 0 | X43: 16.499 | Y43: 8.2495
N44: 41 | P44: Terry Vogel | Q44: Dinky Jets Famous JR | S44: 16.513 | T44: 16.513 | W44: 0 | X44: 16.513 | Y44: 8.2565
N45: 42 | P45: Tanna McCornack | Q45: Oscar De La Bully | S45: 16.513 | T45: 16.513 | W45: 0 | X45: 16.513 | Y45: 8.2565
N46: 43 | P46: Mindy Holloway | Q46: Tiny | S46: 16.533 | T46: 16.533 | V46: 16.41 | W46: 16.41 | X46: 32.943 | Y46: 16.4715
N47: 44 | P47: Charlene Plate | Q47: Blue Moon Frost | S47: 16.54 | T47: 16.54 | W47: 0 | X47: 16.54 | Y47: 8.27
N48: 45 | P48: Jo Kirby | Q48: Heavenly Joak | S48: 16.553 | T48: 16.553 | V48: 16.563 | W48: 16.563 | X48: 33.116 | Y48: 16.558
N49: 46 | P49: Shelley Ward | Q49: Time To Rodeo | S49: 16.557 | T49: 16.557 | W49: 0 | X49: 16.557 | Y49: 8.2785
N50: 47 | P50: Chelsea Young | Q50: Tressy Oaks | S50: 16.564 | T50: 16.564 | W50: 0 | X50: 16.564 | Y50: 8.282
N51: 48 | P51: Jodi Stovall | Q51: Miss French Drifter | S51: 16.568 | T51: 16.568 | W51: 0 | X51: 16.568 | Y51: 8.284
N52: 49 | P52: Maddie Dewberry | Q52: Flights Quick Chick | S52: 16.569 | T52: 16.569 | W52: 0 | X52: 16.569 | Y52: 8.2845
N53: 50 | P53: Debbie Richardson | Q53: VF Going Big Time | S53: 16.58 | T53: 16.58 | V53: 16.683 | W53: 16.683 | X53: 33.263 | Y53: 16.6315
N54: 51 | P54: Jolene Jones | Q54: Peppys Streakof Fame | S54: 16.6 | T54: 16.6 | V54: 16.704 | W54: 16.704 | X54: 33.304 | Y54: 16.652
N55: 52 | P55: Josianne St-Cyr | Q55: Lil Yellow Draw | S55: 16.611 | T55: 16.611 | W55: 0 | X55: 16.611 | Y55: 8.3055
N56: 53 | P56: Simone Elmore | Q56: Badger A Conchadrift | S56: 16.613 | T56: 16.613 | V56: 16.741 | W56: 16.741 | X56: 33.354 | Y56: 16.677
N57: 54 | P57: Lee VOgel | Q57: BB Boogyingfrenchman | S57: 16.619 | T57: 16.619 | W57: 0 | X57: 16.619 | Y57: 8.3095
N58: 55 | P58: Nisa Berry | Q58: Featuring This Jet | S58: 16.621 | T58: 16.621 | V58: 16.365 | W58: 16.365 | X58: 32.986 | Y58: 16.493
N59: 56 | P59: Stormi Branch | Q59: Demon | S59: 16.625 | T59: 16.625 | W59: 0 | X59: 16.625 | Y59: 8.3125
N60: 57 | P60: Daisy Baird | Q60: Elishas Arrow | S60: 16.632 | T60: 16.632 | V60: 16.474 | W60: 16.474 | X60: 33.106 | Y60: 16.553
N61: 58 | P61: Shannon Black | Q61: TS Jets Blazin Lena | S61: 16.645 | T61: 16.645 | V61: 16.84 | W61: 16.84 | X61: 33.485 | Y61: 16.7425
N62: 59 | P62: Ashley Alligood | Q62: RB Bullys Indian Outlaw | S62: 16.65 | T62: 16.65 | W62: 0 | X62: 16.65 | Y62: 8.325
N63: 60 | P63: Misty Peek | Q63: Amos | S63: 16.657 | T63: 16.657 | V63: 16.639 | W63: 16.639 | X63: 33.296 | Y63: 16.648
N64: 61 | P64: Debbie Richardson | Q64: Call Me Misty May | S64: 16.666 | T64: 16.666 | W64: 0 | X64: 16.666 | Y64: 8.333
N65: 62 | P65: Candace Pratt | Q65: White Lick Willy | S65: 16.67 | T65: 16.67 | W65: 0 | X65: 16.67 | Y65: 8.335
N66: 63 | P66: Ginger Billingsley | Q66: AllJokesAside | S66: 16.672 | T66: 16.672 | V66: 16.466 | W66: 16.466 | X66: 33.138 | Y66: 16.569
N67: 64 | P67: Michelle Sanislow | Q67: Snoopy | S67: 16.674 | T67: 16.674 | W67: 0 | X67: 16.674 | Y67: 8.337
N68: 65 | P68: Pam Smith | Q68: Wicked | S68: 16.682 | T68: 16.682 | V68: 16.317 | W68: 16.317 | X68: 32.999 | Y68: 16.4995
N69: 66 | P69: Ginger Billingsley | Q69: Gitanna Drifter Lady | S69: 16.684 | T69: 16.684 | V69: 16.785 | W69: 16.785 | X69: 33.469 | Y69: 16.7345
N70: 67 | P70: Dena Jaminet | Q70: San Sue Harla | S70: 16.688 | T70: 16.688 | W70: 0 | X70: 16.688 | Y70: 8.344
N71: 68 | P71: Gena Franklin | Q71: SS StreakyMe | S71: 16.694 | T71: 16.694 | V71: 16.967 | W71: 16.967 | X71: 33.661 | Y71: 16.8305
N72: 69 | P72: Tara Legg | Q72: Sweet Timber Nickers | S72: 16.697 | T72: 16.697 | W72: 0 | X72: 16.697 | Y72: 8.3485
N73: 70 | P73: Jennifer Cullen | S73: 16.724 | T73: 16.724 | V73: 17.018 | W73: 17.018 | X73: 33.742 | Y73: 16.871
N74: 71 | P74: Maggie Pytlik | Q74: Rhett | S74: 16.726 | T74: 16.726 | W74: 0 | X74: 16.726 | Y74: 8.363
N75: 72 | P75: Sydney Harris | Q75: Get Down Playboy | S75: 16.745 | T75: 16.745 | W75: 0 | X75: 16.745 | Y75: 8.3725
N76: 73 | P76: Meredith Davis | S76: 16.746 | T76: 16.746 | W76: 0 | X76: 16.746 | Y76: 8.373
N77: 74 | P77: Lacey Harmon | Q77: Red Ryon Red Ryon | S77: 16.752 | T77: 16.752 | W77: 0 | X77: 16.752 | Y77: 8.376
N78: 75 | P78: Jacqueline Brockhurst | Q78: Kid Star Dazzler | S78: 16.754 | T78: 16.754 | V78: nt16.930 | W78: nt16.930
N79: 76 | P79: Dawn Fryar | Q79: Special Bid Of Frost | S79: 16.756 | T79: 16.756 | V79: 16.566 | W79: 16.566 | X79: 33.322 | Y79: 16.661
N80: 77 | P80: Nisa Berry | Q80: Traffic Rocks | S80: 16.77 | T80: 16.77 | W80: 0 | X80: 16.77 | Y80: 8.385
N81: 78 | P81: Lacy Billingsley | Q81: Dirty Dizco Diane 37 | S81: 16.778 | T81: 16.778 | V81: 16.62 | W81: 16.62 | X81: 33.398 | Y81: 16.699
N82: 79 | P82: Josianne St-Cyr | Q82: Runaway Lioness | S82: 16.779 | T82: 16.779 | W82: 0 | X82: 16.779 | Y82: 8.3895
N83: 80 | P83: Danielle Bussey | Q83: Aching For Diamonds | S83: 16.781 | T83: 16.781 | W83: 0 | X83: 16.781 | Y83: 8.3905
N84: 81 | P84: Debbie Bloxom | Q84: Bad Fire Arising | S84: 16.791 | T84: 16.791 | V84: 16.814 | W84: 16.814 | X84: 33.605 | Y84: 16.8025
N85: 82 | P85: Jane Fambro | Q85: Willows French Girl | S85: 16.793 | T85: 16.793 | W85: 0 | X85: 16.793 | Y85: 8.3965
N86: 83 | P86: Darryl Kessler | Q86: Irish Firewater | S86: 16.795 | T86: 16.795 | W86: 0 | X86: 16.795 | Y86: 8.3975
N87: 84 | P87: Kylena Hager | Q87: Bar B Firewatersteel | S87: 16.795 | T87: 16.795 | W87: 0 | X87: 16.795 | Y87: 8.3975
N88: 85 | P88: Noah Grimes | Q88: California Clone | S88: 16.804 | T88: 16.804 | V88: 16.721 | W88: 16.721 | X88: 33.525 | Y88: 16.7625
N89: 86 | P89: Lindsey Hoffman | Q89: First Down Deception | S89: 16.829 | T89: 16.829 | V89: 15.978 | W89: 15.978 | X89: 32.807 | Y89: 16.4035
N90: 87 | P90: Gretchen Goedeken | Q90: Pretty Bay Pony | S90: 16.83 | T90: 16.83 | V90: 17.532 | W90: 17.532 | X90: 34.362 | Y90: 17.181
N91: 88 | P91: Lisa Lucia | Q91: Just Got Caught | S91: 16.842 | T91: 16.842 | W91: 0 | X91: 16.842 | Y91: 8.421
N92: 89 | P92: Joan Morgan | Q92: Starlight Remedy | S92: 16.867 | T92: 16.867 | V92: 17.097 | W92: 17.097 | X92: 33.964 | Y92: 16.982
N93: 90 | P93: Courtney Ford | Q93: Sally | S93: 16.869 | T93: 16.869 | V93: 16.674 | W93: 16.674 | X93: 33.543 | Y93: 16.7715
N94: 91 | P94: Charlesee Gallaway | Q94: Big As I Am Rare | S94: 16.874 | T94: 16.874 | V94: 16.907 | W94: 16.907 | X94: 33.781 | Y94: 16.8905
N95: 92 | P95: Gretchen Goedeken | Q95: Spots In My Dreams | S95: 16.874 | T95: 16.874 | V95: 17.598 | W95: 17.598 | X95: 34.472 | Y95: 17.236
N96: 93 | P96: Lee Barron | Q96: Xtra Splash N GO | S96: 16.889 | T96: 16.889 | V96: 16.61 | W96: 16.61 | X96: 33.499 | Y96: 16.7495
N97: 94 | P97: Desiree Epps | Q97: Oklahoma Josey | S97: 16.912 | T97: 16.912 | W97: 0 | X97: 16.912 | Y97: 8.456
N98: 95 | P98: Jolene Jones | Q98: Streakin Louie | S98: 16.922 | T98: 16.922 | W98: 0 | X98: 16.922 | Y98: 8.461
N99: 96 | P99: Mandy Smith | Q99: Mada Fame | S99: 16.949 | T99: 16.949 | W99: 0 | X99: 16.949 | Y99: 8.4745
N100: 97 | P100: Adrein McFarland | Q100: A Streak Of Happy | S100: 16.976 | T100: 16.976 | V100: 17.9 | W100: 17.9 | X100: 34.876 | Y100: 17.438
N101: 98 | O101: 3D AVERAGE | P101: Johnell Ray | Q101: Smooth Your Jets | S101: 16.985 | T101: 16.985 | V101: 16.654 | W101: 16.654 | X101: 33.639 | Y101: 16.8195
N102: 99 | P102: Krista Whitley | Q102: Frenchmans Splash | S102: 16.991 | T102: 16.991 | V102: 16.866 | W102: 16.866 | X102: =(T102+W102) -> 33.857 | Y102: 16.9285
N103: 100 | P103: Davie King | Q103: Luna | S103: 16.992 | T103: 16.992 | W103: 0 | X103: 16.992 | Y103: 8.496
N104: 101 | P104: Amber Scholin | Q104: Fuel Bird | S104: 17.018 | T104: 17.018 | W104: 0 | X104: 17.018 | Y104: 8.509
N105: 102 | P105: Laurel Allred | Q105: Quicks Blue Peppy | S105: 17.028 | T105: 17.028 | V105: 17.214 | W105: 17.214 | X105: 34.242 | Y105: 17.121
N106: 103 | P106: Mindy Holloway | Q106: Lemon Drop | S106: 17.061 | T106: 17.061 | W106: 0 | X106: 17.061 | Y106: 8.5305
N107: 104 | P107: Darryl Kessler | Q107: Shes So Slick | S107: 17.084 | T107: 17.084 | W107: 0 | X107: 17.084 | Y107: 8.542
N108: 105 | P108: Sara Reed | Q108: Rattle Me Two | S108: 17.099 | T108: 17.099 | V108: 16.746 | W108: 16.746 | X108: 33.845 | Y108: 16.9225
N109: 106 | P109: Courtney Fuchs | Q109: Uh Huh Im Streakin | S109: 17.107 | T109: 17.107 | W109: 0 | X109: 17.107 | Y109: 8.5535
N110: 107 | P110: Julie Mahon | Q110: CD's Hickory Lights | S110: 17.11 | T110: 17.11 | W110: 0 | X110: 17.11 | Y110: 8.555
N111: 108 | P111: Hollie Sirman | Q111: Easter Bunny Special | S111: 17.112 | T111: 17.112 | V111: 17.718 | W111: 17.718 | X111: 34.83 | Y111: 17.415
N112: 109 | P112: Connie Randolf | Q112: Hot Rod Kitty Catt | S112: 17.121 | T112: 17.121 | W112: 0 | X112: 17.121 | Y112: 8.5605
N113: 110 | P113: Blake Myers | Q113: LuvOnDaRocks | S113: 17.128 | T113: 17.128 | V113: 17.139 | W113: 17.139 | X113: 34.267 | Y113: 17.1335
N114: 111 | P114: Karen Coskrey | Q114: TS Dream Drifter | S114: 17.128 | T114: 17.128 | V114: 17.189 | W114: 17.189 | X114: 34.317 | Y114: 17.1585
N115: 112 | P115: Michaela Robertson | Q115: Shes Cartel Streaking | S115: 17.13 | T115: 17.13 | V115: 16.912 | W115: 16.912 | X115: 34.042 | Y115: 17.021
N116: 113 | P116: Jane Fambro | Q116: Guys Merridoc Girl | S116: 17.144 | T116: 17.144 | W116: 0 | X116: 17.144 | Y116: 8.572
N117: 114 | P117: Janee' Ornelas | Q117: Pistol | S117: 17.151 | T117: 17.151 | W117: 0 | X117: 17.151 | Y117: 8.5755
N118: 115 | P118: Lisa Jo Velliquette | Q118: Namgis D 44 | S118: 17.157 | T118: 17.157 | W118: 0 | X118: 17.157 | Y118: 8.5785
N119: 116 | P119: Teneille Angland | Q119: KN Famous Ever After | S119: 17.177 | T119: 17.177 | W119: 0 | X119: 17.177 | Y119: 8.5885
N120: 117 | P120: Kristy Scribner | Q120: Beggars Rockette | S120: 17.2 | T120: 17.2 | V120: 17.212 | W120: 17.212 | X120: 34.412 | Y120: 17.206
N121: 118 | P121: Timberly Erickosn | Q121: Mines Fast | S121: 17.204 | T121: 17.204 | W121: 0 | X121: 17.204 | Y121: 8.602
N122: 119 | P122: Piper Schaapveld | Q122: Cool Little Kitty | S122: 17.213 | T122: 17.213 | W122: 0 | X122: 17.213 | Y122: 8.6065
N123: 120 | P123: Hannah Hertel | Q123: Lenasdashtavictory | S123: 17.234 | T123: 17.234 | W123: 0 | X123: 17.234 | Y123: 8.617
N124: 121 | P124: Lee ANn Guilkey | Q124: Blazin Gator | S124: 17.256 | T124: 17.256 | W124: 0 | X124: 17.256 | Y124: 8.628
N125: 122 | P125: Sydney Swatsell | Q125: Abby | S125: 17.259 | T125: 17.259 | V125: 16.79 | W125: 16.79 | X125: 34.049 | Y125: 17.0245
N126: 123 | P126: Jackie Whitcher | Q126: Busy | S126: 17.268 | T126: 17.268 | W126: 0 | X126: 17.268 | Y126: 8.634
N127: 124 | O127: 4D AVERAGE | P127: JoAnna Brown | Q127: Dr Nicks Prime Time | S127: 17.27 | T127: 17.27 | V127: 17.362 | W127: 17.362 | X127: 34.632 | Y127: 17.316
N128: 125 | P128: Terry Vogel | Q128: Imablueyedblondbitz | S128: 17.299 | T128: 17.299 | W128: 0 | X128: 17.299 | Y128: 8.6495
N129: 126 | P129: Sara Cazedessus | Q129: Ride The Lightening | S129: 17.299 | T129: 17.299 | V129: 16.791 | W129: 16.791 | X129: 34.09 | Y129: 17.045
N130: 127 | P130: Dawn Link | Q130: Domintnator | S130: 17.312 | T130: 17.312 | W130: 0 | X130: 17.312 | Y130: 8.656
N131: 128 | P131: Nikki Cain | Q131: Compromised Perks | S131: 17.323 | T131: 17.323 | V131: 17.198 | W131: 17.198 | X131: 34.521 | Y131: 17.2605
N132: 129 | P132: Tawnie Vander Lans | Q132: TS Return N Hayday | S132: 17.326 | T132: 17.326 | V132: 16.751 | W132: 16.751 | X132: 34.077 | Y132: 17.0385
N133: 130 | P133: Tracie Schoenthal | Q133: GunsNFirewater | S133: 17.338 | T133: 17.338 | V133: 17.506 | W133: 17.506 | X133: 34.844 | Y133: 17.422
N134: 131 | P134: Charlene Glover | Q134: Chevy Cinderella | S134: 17.381 | T134: 17.381 | V134: 17.071 | W134: 17.071 | X134: 34.452 | Y134: 17.226
N135: 132 | P135: Kylee Scribner | Q135: Firewater Cartel | S135: 17.407 | T135: 17.407 | V135: 16.079 | W135: 16.079 | X135: 33.486 | Y135: 16.743
N136: 133 | P136: Amber Ott | Q136: Shez Texas Royalty | S136: 17.416 | T136: 17.416 | W136: 0 | X136: 17.416 | Y136: 8.708
N137: 134 | P137: Hadley Durfey | Q137: One Smooth Kelly | S137: 17.431 | T137: 17.431 | W137: 0 | X137: 17.431 | Y137: 8.7155
N138: 135 | P138: Whitney Fisher | Q138: BB French N Easy | S138: 17.457 | T138: 17.457 | V138: 17.324 | W138: 17.324 | X138: 34.781 | Y138: 17.3905
N139: 136 | P139: Janee' Ornelas | Q139: Frosty | S139: 17.463 | T139: 17.463 | V139: 18.726 | W139: 18.726 | X139: 36.189 | Y139: 18.0945
N140: 137 | P140: Crystal Allred | Q140: Not A Berry But A Jewel | S140: 17.484 | T140: 17.484 | W140: 0 | X140: 17.484 | Y140: 8.742
N141: 138 | P141: Geneva Robertson | Q141: Wynn | S141: 17.485 | T141: 17.485 | W141: 0 | X141: 17.485 | Y141: 8.7425
N142: 139 | P142: Taegan Sanders | Q142: Whizzer Guy | S142: 17.494 | T142: 17.494 | V142: 17.355 | W142: 17.355 | X142: 34.849 | Y142: 17.4245
N143: 140 | P143: Karen Franklin | Q143: SS SecretSix | S143: 17.501 | T143: 17.501 | W143: 0 | X143: 17.501 | Y143: 8.7505
N144: 141 | P144: Debra Cooper | Q144: Hugginanativepepto | S144: 17.525 | T144: 17.525 | V144: 17.781 | W144: 17.781 | X144: 35.306 | Y144: 17.653
N145: 142 | P145: Marlyn Bland | Q145: TK Lady Gotta Gun | S145: 17.533 | T145: 17.533 | V145: 17.679 | W145: 17.679 | X145: 35.212 | Y145: 17.606
N146: 143 | P146: Ashley Moore | Q146: Mucho Fast Dave | S146: 17.565 | T146: 17.565 | V146: 17.593 | W146: 17.593 | X146: 35.158 | Y146: 17.579
N147: 144 | P147: Danielle Bussey | Q147: JR Playgirl Bar | S147: 17.571 | T147: 17.571 | W147: 0 | X147: 17.571 | Y147: 8.7855
N148: 145 | P148: Nisa Berry | Q148: Just Stylin | S148: 17.586 | T148: 17.586 | V148: 16.534 | W148: 16.534 | X148: 34.12 | Y148: 17.06
N149: 146 | P149: Sydney Swatsell | Q149: Mack Daddy | S149: 17.631 | T149: 17.631 | W149: 0 | X149: 17.631 | Y149: 8.8155
N150: 147 | P150: Julia Pogue | Q150: B W Yardboss | S150: 17.636 | T150: 17.636 | V150: 18.619 | W150: 18.619 | X150: 36.255 | Y150: 18.1275
N151: 148 | P151: Colt Tew | Q151: Annie Guys Easy Jet | S151: 17.662 | T151: 17.662 | W151: 0 | X151: 17.662 | Y151: 8.831
N152: 149 | P152: Angie Mitchell | Q152: Bam Bam | S152: 17.758 | T152: 17.758 | W152: 0 | X152: 17.758 | Y152: 8.879
N153: 150 | P153: Cindy Harris | Q153: Black Jet Peppy | S153: 17.761 | T153: 17.761 | W153: 0 | X153: 17.761 | Y153: 8.8805
N154: 151 | P154: Terry Vogel | Q154: Super Frosted Bug | S154: 17.768 | T154: 17.768 | W154: 0 | X154: 17.768 | Y154: 8.884
N155: 152 | P155: Abery Knight-Potts | Q155: Shese A Gold Coin | S155: 17.808 | T155: 17.808 | W155: 0 | X155: 17.808 | Y155: 8.904
N156: 153 | P156: Lisa Corey | Q156: Beda Dream | S156: 17.826 | T156: 17.826 | V156: 17.483 | W156: 17.483 | X156: 35.309 | Y156: 17.6545
N157: 154 | P157: Mike Robertson | Q157: Lions And Ladybugs | S157: 17.848 | T157: 17.848 | W157: 0 | X157: 17.848 | Y157: 8.924
N158: 155 | P158: Karen Richardson | Q158: Frenchmans Ruby Dash | S158: 17.876 | T158: 17.876 | W158: 0 | X158: 17.876 | Y158: 8.938
N159: 156 | P159: Sydney Swatsell | Q159: Gus | S159: 17.922 | T159: 17.922 | V159: 17.346 | W159: 17.346 | X159: 35.268 | Y159: 17.634
N160: 157 | P160: Mikayla Cearley | Q160: TF PeppySmokenSavage | S160: 17.941 | T160: 17.941 | V160: 17.846 | W160: 17.846 | X160: 35.787 | Y160: 17.8935
N161: 158 | P161: Elyse Busby | Q161: EB Ripple Effect | S161: 17.953 | T161: 17.953 | V161: 16.992 | W161: 16.992 | X161: 34.945 | Y161: 17.4725
N162: 159 | P162: Karen Gaida | Q162: Ciclone Streak | S162: 17.974 | T162: 17.974 | V162: 17.201 | W162: 17.201 | X162: 35.175 | Y162: 17.5875
N163: 160 | P163: Janee' Ornelas | Q163: Babe | S163: 17.99 | T163: 17.99 | V163: 17.59 | W163: 17.59 | X163: 35.58 | Y163: 17.79
N164: 161 | P164: Haley Alvarez | Q164: Don Quixote | S164: 18.018 | T164: 18.018 | W164: 0 | X164: 18.018 | Y164: 9.009
N165: 162 | P165: Kinsey Chandler | Q165: Favorite Misstake | S165: 18.03 | T165: 18.03 | V165: 17.939 | W165: 17.939 | X165: 35.969 | Y165: 17.9845
N166: 163 | P166: Tiffany Durham | Q166: Dashin Luke Perry | S166: 18.041 | T166: 18.041 | V166: 17.243 | W166: 17.243 | X166: 35.284 | Y166: 17.642
N167: 164 | O167: 5D AVERAGE | P167: Hollie Sirman | Q167: Quick Boogie | S167: 18.062 | T167: 18.062 | V167: 17.611 | W167: 17.611 | X167: 35.673 | Y167: 17.8365
N168: 165 | P168: Kandace Bussell | Q168: Circle Bar Rare Bugs | S168: 18.133 | T168: 18.133 | V168: 17.126 | W168: 17.126 | X168: 35.259 | Y168: 17.6295
N169: 166 | P169: Ann White | Q169: Hank | S169: 18.135 | T169: 18.135 | W169: 0 | X169: 18.135 | Y169: 9.0675
N170: 167 | P170: Dena Jaminet | Q170: My New Tattoo | S170: 18.148 | T170: 18.148 | V170: 17.83 | W170: 17.83 | X170: 35.978 | Y170: 17.989
N171: 168 | P171: Cooper Peek | Q171: Dolly | S171: 18.175 | T171: 18.175 | V171: 17.357 | W171: 17.357 | X171: 35.532 | Y171: 17.766
N172: 169 | P172: Kaytie Zuidema | Q172: Misty K Quioxte | S172: 18.178 | T172: 18.178 | V172: 17.298 | W172: 17.298 | X172: 35.476 | Y172: 17.738
N173: 170 | P173: Jesse Budd | Q173: Flicker Nic | S173: 18.359 | T173: 18.359 | V173: 17.25 | W173: 17.25 | X173: 35.609 | Y173: 17.8045
N174: 171 | P174: Martina Graner | Q174: Lil Holland Chick | S174: 18.421 | T174: 18.421 | W174: 0 | X174: 18.421 | Y174: 9.2105
N175: 172 | P175: Jessica Dunbar | Q175: Pumba | S175: 18.426 | T175: 18.426 | V175: 17.62 | W175: 17.62 | X175: 36.046 | Y175: 18.023
N176: 173 | P176: Adrein McFarland | Q176: Pop Sugar | S176: 18.532 | T176: 18.532 | V176: 21.661 | W176: 21.661 | X176: 40.193 | Y176: 20.0965
N177: 174 | P177: Jaelie Jaminet | Q177: Bella | S177: 18.56 | T177: 18.56 | V177: 18.478 | W177: 18.478 | X177: 37.038 | Y177: 18.519
N178: 175 | P178: Aerial Eggers | Q178: SN Apollo | S178: 18.629 | T178: 18.629 | W178: 0 | X178: 18.629 | Y178: 9.3145
N179: 176 | P179: Haley King | Q179: Vanity | S179: 18.726 | T179: 18.726 | W179: 0 | X179: 18.726 | Y179: 9.363
N180: 177 | P180: Johnell Ray | Q180: Peppy San Smooth | S180: 18.854 | T180: 18.854 | V180: 18.182 | W180: 18.182 | X180: 37.036 | Y180: 18.518
N181: 178 | P181: Teresa Sisk | Q181: Chans Rocky Leo | S181: 19.076 | T181: 19.076 | W181: 0 | X181: 19.076 | Y181: 9.538
N182: 179 | P182: Callie Cullenberg | S182: 20.029 | T182: 20.029 | W182: 0 | X182: 20.029 | Y182: 10.0145
N183: 180 | P183: Caydence Grnwalt | Q183: Heza Wild Thing | S183: 20.396 | T183: 20.396 | W183: 0 | X183: 20.396 | Y183: 10.198
N184: 181 | P184: Charlene Plate | Q184: TQ Go Dash for Cash | S184: 20.399 | T184: 20.399 | V184: 16.761 | W184: 16.761 | X184: 37.16 | Y184: 18.58
N185: 182 | P185: Jamey Odell | Q185: THC Frenchman 513 | S185: 22.488 | T185: 22.488 | W185: 0 | X185: 22.488 | Y185: 11.244
N186: 183 | P186: Janee' Ornelas | Q186: Cartel | S186: 29.707 | T186: 29.707 | W186: 0 | X186: 29.707 | Y186: 14.8535
N187: 184 | P187: Rebba Wright | Q187: Twosteppin Firewater | S187: broken | T187: broken | V187: 17.354 | W187: 17.354
N188: 185 | P188: Jessica Mullens | Q188: Hakunamatadi | S188: N/T | T188: N/T | W188: 0
N189: 186 | P189: Roberta Chott | Q189: Guys Hot Frost | S189: N/T | T189: N/T | W189: 0
N190: 187 | P190: Kyle Etchart | Q190: Panfis Corona | S190: N/T | T190: N/T | W190: 0
N191: 188 | P191: Denny Ralls | Q191: SV Southern Comfort | S191: N/T | T191: N/T | V191: 16.431 | W191: 16.431
N192: 189 | P192: Nisa Berry | Q192: A Kings Famous Fling | S192: N/T16.269 | T192: N/T16.269 | W192: 0
N193: 190 | P193: Courtney Worthington | Q193: Rey Of Fame | S193: N/T16.275 | T193: N/T16.275 | W193: 0
N194: 191 | P194: Jamey Odell | Q194: THC Dat Frenchman | S194: N/T16.382 | T194: N/T16.382 | W194: 0
N195: 192 | P195: Sydney Swatsell | Q195: Smalls | S195: N/T16.582 | T195: N/T16.582 | V195: 16.645 | W195: 16.645
N196: 193 | P196: Bianca Dos Santos | Q196: One Famous Streaker | S196: N/T16.702 | T196: N/T16.702 | W196: 0
N197: 194 | P197: Kelly Lankford | Q197: Kissinmydate | S197: N/T16.769 | T197: N/T16.769 | W197: 0
N198: 195 | P198: Hevenli Scribner | Q198: Daffy | S198: N/T17.631 | T198: N/T17.631 | W198: 0
N199: 196 | P199: Jana Stripe | Q199: Tres Socks | S199: nt | T199: nt | W199: 0
N200: 197 | P200: Brooke Meier | Q200: SOcks | S200: nt | T200: nt | W200: 0
... 303 more rows

Sheet BFA 2D Payout (hidden)
A1: BFA 2D Payout
A2: Entry Fee | B2: # Entries | C2: % Payback | D2: Added $ | E2: Total Payout | F2: Each Go
A3: 25 | B3: 19 | C3: 0.8 | D3: 200 | E3: =(A3*$C$3)*B3+D3 -> 580 | F3: 0.3
F4: =$E$3*$F$3 -> 174
A5: $5,000-7,500 Pays 5 Places 4 to 1D 1 to 2D
A6: Placings | B6: 1D | D6: 2D
A7: 1st | B7: =($F$4*$C$7) -> 57.42 | C7: 0.33 | D7: =$F$4*$E$7 -> 12.18 | E7: 0.07
A8: 2nd | B8: =$F$4*$C$8 -> 46.98 | C8: 0.27
A9: 3rd | B9: =$F$4*$C$9 -> 34.8 | C9: 0.2
A10: 4th | B10: =$F$4*$C$10 -> 22.62 | C10: 0.13
A11: Totals | B11: =SUM(B7:B10) -> 161.82 | D11: =SUM(D7:D10) -> 12.18 | E11: =(C7+C8+C9+C10+E7+E8) -> 1
A12: =B11+D11 -> 174
A13: $7,501 - 10,000 Pays 6 Places 4 to 1D, 2 to 2D
A14: Placings | B14: 1D | D14: 2D
A15: 1st | B15: =$F$4*$C$15 -> 50.46 | C15: 0.29 | D15: =$F$4*$E$15 -> 15.66 | E15: 0.09
A16: 2nd | B16: =+$F$4*$C$16 -> 41.76 | C16: 0.24 | D16: =F4*E16 -> 8.7 | E16: 0.05
A17: 3rd | B17: =$F$4*$C$17 -> 33.06 | C17: 0.19
A18: 4th | B18: =$F$4*$C$18 -> 24.36 | C18: 0.14
A19: Totals | B19: =SUM(B15:B18) -> 149.64 | D19: =D16+D15 -> 24.36 | E19: =SUM(C15+C16+C17+C18+E15+E16) -> 1
A20: =D19+B19 -> 174
A21: $10,001 - $15,000 Payes 8 Places 5 to 1D, 3 to 2D
A22: Placings | B22: 1D | D22: 2D
A23: 1st | B23: =F4*C23 -> 41.76 | C23: 0.24 | D23: =F4*E23 -> 12.18 | E23: 0.07
A24: 2nd | B24: =F4*C24 -> 34.8 | C24: 0.2 | D24: =F4*E24 -> 8.7 | E24: 0.05
A25: 3rd | B25: =F4*C25 -> 29.58 | C25: 0.17 | D25: =F4*E25 -> 6.96 | E25: 0.04
A26: 4th | B26: =F4*C26 -> 22.62 | C26: 0.13
A27: 5th | B27: =F4*C27 -> 17.4 | C27: 0.1
A28: Totals | B28: =SUM(B23:B27) -> 146.16 | D28: =SUM(D23:D27) -> 27.84 | E28: =C23+C24+C25+C26+C27+E23+E24+E25 -> 1
A29: =B28+D28 -> 174
A30: $15,001 - $25,000 Payes 11 Places 7 to 1D, 4 to 2D
A31: Placings | B31: 1D | D31: 2D
A32: 1st | B32: =$F$4*C32 -> 36.54 | C32: 0.21 | D32: =$F$4*E32 -> 8.7 | E32: 0.05
A33: 2nd | B33: 31.32 | C33: 0.18 | D33: 6.96 | E33: 0.04
A34: 3rd | B34: 26.1 | C34: 0.15 | D34: 5.22 | E34: 0.03
A35: 4th | B35: 19.14 | C35: 0.11 | D35: 3.48 | E35: 0.02
A36: 5th | B36: 13.92 | C36: 0.08
A37: 6th | B37: 12.18 | C37: 0.07
A38: 7th | B38: 10.44 | C38: 0.06
A39: Totals | B39: =SUM(B32:B38) -> 149.64 | D39: =SUM(D32:D38) -> 24.36 | E39: =C32+C33+C34+C35+C36+C37+C38+E32+E33+E34+E35 -> 1
A40: =SUM(B39+D39) -> 174
A41: $25,001 - $35,000 Payes 12 Places 8 to 1D, 4 to 2D
A42: Placings | B42: 1D | D42: 2D
A43: 1st | B43: =$F$4*C43 -> 33.06 | C43: 0.19 | D43: =$F$4*E43 -> 8.7 | E43: 0.05
A44: 2nd | B44: 26.1 | C44: 0.15 | D44: 6.96 | E44: 0.04
A45: 3rd | B45: 20.88 | C45: 0.12 | D45: 5.22 | E45: 0.03
A46: 4th | B46: 17.4 | C46: 0.1 | D46: 3.48 | E46: 0.02
A47: 5th | B47: 15.66 | C47: 0.09
A48: 6th | B48: 13.92 | C48: 0.08
A49: 7th | B49: 12.18 | C49: 0.07
A50: 8th | B50: 10.44 | C50: 0.06
A51: Totals | B51: =SUM(B43:B50) -> 149.64 | D51: =SUM(D43:D46) -> 24.36 | E51: =C43+C44+C45+C46+C47+C48+C49+C50+E43+E44+E45+E46 -> 1
A52: =D51+B51 -> 174

Sheet 2D Payout
A1: 2D Payout
A2: Entry Fee | B2: # Entries | C2: % Payback | D2: Added $ | E2: Total Payout
A3: 50 | B3: 8 | C3: 0.8 | D3: 0 | E3: =(A3*$C$3)*B3+D3 -> 320
A5: % in each D | B5: 0.6 | C5: 0.4 | D5: Total % = | E5: =SUM(B5:C5) -> 1
B6: 1D | C6: 2D
B7: =(($A$3*$B$3*$C$3*$B$5)+($D$3*$B$5)) -> 192 | C7: =(($A$3*$B$3*$C$3*$C$5)+($D$3*$C$5)) -> 128
A8: Totals | B8: =SUM(B7) -> 192 | C8: 128 | D8: =SUM(B8:C8) -> 320
A10: For 1-7 riders 1 place
A11: Placings | B11: 1D | C11: 2D
A12: 1st | B12: =$B$7*$E$12 -> 192 | C12: =$C$7*$E$5 -> 128 | D12: è | E12: 1
A13: Totals | B13: =SUM(B12) -> 192 | C13: 128 | D13: =SUM(B13:C13) -> 320 | E13: =SUM(E12) -> 1
A15: For 8-11 riders 2 places
A16: Placings | B16: 1D | C16: 2D
A17: 1st | B17: =$B$7*$E$17 -> 115.2 | C17: =$C$7*$E$17 -> 76.8 | D17: è | E17: 0.6
A18: 2nd | B18: =$B$7*$E$18 -> 76.8 | C18: =$C$7*$E$18 -> 51.2 | D18: è | E18: 0.4
A19: Totals | B19: =SUM(B17:B18) -> 192 | C19: 128 | D19: =SUM(B19:C19) -> 320 | E19: =SUM(E17:E18) -> 1
A21: For 12-15 riders 3 places
A22: Placings | B22: 1D | C22: 2D
A23: 1st | B23: =$B$7*$E$23 -> 96 | C23: =$C$7*$E$23 -> 64 | D23: è | E23: 0.5
A24: 2nd | B24: =$B$7*$E$24 -> 57.6 | C24: =$C$7*$E$24 -> 38.4 | D24: è | E24: 0.3
A25: 3rd | B25: =$B$7*$E$25 -> 38.4 | C25: =$C$7*$E$25 -> 25.6 | D25: è | E25: 0.2
A26: Totals | B26: =SUM(B23:B25) -> 192 | C26: 128 | D26: =SUM(B26:C26) -> 320 | E26: =SUM(E23:E25) -> 1
A28: For 16-19 riders 4 places
A29: Placings | B29: 1D | C29: 2D
A30: 1st | B30: =$B$7*$E$30 -> 76.8 | C30: =$C$7*$E$30 -> 51.2 | D30: è | E30: 0.4
A31: 2nd | B31: =$B$7*$E$31 -> 57.6 | C31: =$C$7*$E$31 -> 38.4 | D31: è | E31: 0.3
A32: 3rd | B32: =$B$7*$E$32 -> 38.4 | C32: =$C$7*$E$32 -> 25.6 | D32: è | E32: 0.2
A33: 4th | B33: =$B$7*$E$33 -> 19.2 | C33: =$C$7*$E$33 -> 12.8 | D33: è | E33: 0.1
A34: Totals | B34: =SUM(B30:B33) -> 192 | C34: 128 | D34: =SUM(B34:C34) -> 320 | E34: =SUM(E30:E33) -> 1
A36: For 20-23 riders 5 places
A37: Placings | B37: 1D | C37: 2D
A38: 1st | B38: =$B$7*$E$38 -> 57.6 | C38: =$C$7*$E$38 -> 38.4 | D38: è | E38: 0.3
A39: 2nd | B39: =$B$7*$E$39 -> 48 | C39: =$C$7*$E$39 -> 32 | D39: è | E39: 0.25
A40: 3rd | B40: =$B$7*$E$40 -> 38.4 | C40: =$C$7*$E$40 -> 25.6 | D40: è | E40: 0.2
A41: 4th | B41: =$B$7*$E$41 -> 28.8 | C41: =$C$7*$E$41 -> 19.2 | D41: è | E41: 0.15
A42: 5th | B42: =$B$7*$E$42 -> 19.2 | C42: =$C$7*$E$42 -> 12.8 | D42: è | E42: 0.1
A43: Totals | B43: =SUM(B38:B42) -> 192 | C43: 128 | D43: =SUM(B43:C43) -> 320 | E43: =SUM(E38:E42) -> 1
A45: For 24-27 riders 6 places
A46: Placings | B46: 1D | C46: 2D
A47: 1st | B47: =$B$7*$E$47 -> 48 | C47: =$C$7*$E$47 -> 32 | D47: è | E47: 0.25
A48: 2nd | B48: =$B$7*$E$48 -> 38.4 | C48: =$C$7*$E$48 -> 25.6 | D48: è | E48: 0.2
A49: 3rd | B49: =$B$7*$E$49 -> 34.56 | C49: =$C$7*$E$49 -> 23.04 | D49: è | E49: 0.18
A50: 4th | B50: =$B$7*$E$50 -> 28.8 | C50: =$C$7*$E$50 -> 19.2 | D50: è | E50: 0.15
A51: 5th | B51: =$B$7*$E$51 -> 23.04 | C51: =$C$7*$E$51 -> 15.36 | D51: è | E51: 0.12
A52: 6th | B52: =$B$7*$E$52 -> 19.2 | C52: =$C$7*$E$52 -> 12.8 | D52: è | E52: 0.1
A53: Totals | B53: =SUM(B47:B52) -> 192 | C53: 128 | D53: =SUM(B53:C53) -> 320 | E53: =SUM(E47:E52) -> 1
A55: For 28-31 riders 7 places
A56: Placings | B56: 1D | C56: 2D
A57: 1st | B57: =$B$7*$E$57 -> 42.24 | C57: =$C$7*$E$57 -> 28.16 | D57: è | E57: 0.22
A58: 2nd | B58: =$B$7*$E$58 -> 34.56 | C58: =$C$7*$E$58 -> 23.04 | D58: è | E58: 0.18
A59: 3rd | B59: =$B$7*$E$59 -> 30.72 | C59: =$C$7*$E$59 -> 20.48 | D59: è | E59: 0.16
A60: 4th | B60: =$B$7*$E$60 -> 26.88 | C60: =$C$7*$E$60 -> 17.92 | D60: è | E60: 0.14
A61: 5th | B61: =$B$7*$E$61 -> 23.04 | C61: =$C$7*$E$61 -> 15.36 | D61: è | E61: 0.12
A62: 6th | B62: =$B$7*$E$62 -> 19.2 | C62: =$C$7*$E$62 -> 12.8 | D62: è | E62: 0.1
A63: 7th | B63: =$B$7*$E$63 -> 15.36 | C63: =$C$7*$E$63 -> 10.24 | D63: è | E63: 0.08
A64: Totals | B64: =SUM(B57:B63) -> 192 | C64: 128 | D64: =SUM(B64:C64) -> 320 | E64: =SUM(E57:E63) -> 1
A66: For 32 or more riders 8 places
A67: Placings | B67: 1D | C67: 2D
A68: 1st | B68: =$B$7*$E$68 -> 44.16 | C68: =$C$7*$E$68 -> 29.44 | D68: è | E68: 0.23
A69: 2nd | B69: =$B$7*$E$69 -> 38.4 | C69: =$C$7*$E$69 -> 25.6 | D69: è | E69: 0.2
A70: 3rd | B70: =$B$7*$E$70 -> 32.64 | C70: =$C$7*$E$70 -> 21.76 | D70: è | E70: 0.17
A71: 4th | B71: =$B$7*$E$71 -> 26.88 | C71: =$C$7*$E$71 -> 17.92 | D71: è | E71: 0.14
A72: 5th | B72: =$B$7*$E$72 -> 21.12 | C72: =$C$7*$E$72 -> 14.08 | D72: è | E72: 0.11
A73: 6th | B73: =$B$7*$E$73 -> 15.36 | C73: =$C$7*$E$73 -> 10.24 | D73: è | E73: 0.08
A74: 7th | B74: =$B$7*$E$74 -> 9.6 | C74: =$C$7*$E$74 -> 6.4 | D74: è | E74: 0.05
A75: 8th | B75: =$B$7*$E$75 -> 3.84 | C75: =$C$7*$E$75 -> 2.56 | D75: è | E75: 0.02
A76: Totals | B76: =SUM(B68:B75) -> 192 | C76: 128 | D76: =SUM(B76:C76) -> 320 | E76: =SUM(E68:E75) -> 1

Sheet 3D Payout (hidden)
A1: 3D Payout
A2: Entry Fee | B2: # Entries | C2: % Payback | D2: $ From Entry | E2: Added $ | F2: Total Payout
A3: 10 | B3: 3 | C3: 0.8 | D3: =$A$3*$C$3*$B$3 -> 24 | F3: =$D$3+$E$3 -> 24
A5: % in each D | B5: 0.5 | C5: 0.3 | D5: 0.2 | E5: Total % = | F5: =SUM(B5:D5) -> 1
B6: 1D | C6: 2D | D6: 3D
B7: =(($A$3*$B$3*$C$3*$B$5)+($E$3*$B$5)) -> 12 | C7: =(($A$3*$B$3*$C$3*$C$5)+($E$3*$C$5)) -> 7.2 | D7: =(($A$3*$B$3*$C$3*$D$5)+($E$3*$D$5)) -> 4.8
A8: Totals | B8: =SUM(B7) -> 12 | C8: 7.2 | D8: 4.8 | E8: =SUM(B8:D8) -> 24
A10: For 1-10 riders 1 place
A11: Placings | B11: 1D | C11: 2D | D11: 3D
A12: 1st | B12: =$B$7*$F$12 -> 12 | C12: =$C$7*$F$12 -> 7.2 | D12: =$D$7*$F$12 -> 4.8 | E12: è | F12: 1
A13: Totals | B13: =SUM(B12) -> 12 | C13: 7.2 | D13: 4.8 | E13: =SUM(B13:D13) -> 24 | F13: =SUM(F12) -> 1
A15: For 11-15 riders 2 places
A16: Placings | B16: 1D | C16: 2D | D16: 3D
A17: 1st | B17: =$B$7*$F$17 -> 7.2 | C17: =$C$7*$F$17 -> 4.32 | D17: =$D$7*$F$17 -> 2.88 | E17: è | F17: 0.6
A18: 2nd | B18: =$B$7*$F$18 -> 4.8 | C18: =$C$7*$F$18 -> 2.88 | D18: =$D$7*$F$18 -> 1.92 | E18: è | F18: 0.4
A19: Totals | B19: =SUM(B17:B18) -> 12 | C19: 7.2 | D19: 4.8 | E19: =SUM(B19:D19) -> 24 | F19: =SUM(F17:F18) -> 1
A21: For 16-30 riders 3 places
A22: Placings | B22: 1D | C22: 2D | D22: 3D
A23: 1st | B23: =$B$7*$F$23 -> 6 | C23: =$C$7*$F$23 -> 3.6 | D23: =$D$7*$F$23 -> 2.4 | E23: è | F23: 0.5
A24: 2nd | B24: =$B$7*$F$24 -> 3.6 | C24: =$C$7*$F$24 -> 2.16 | D24: =$D$7*$F$24 -> 1.44 | E24: è | F24: 0.3
A25: 3rd | B25: =$B$7*$F$25 -> 2.4 | C25: =$C$7*$F$25 -> 1.44 | D25: =$D$7*$F$25 -> 0.96 | E25: è | F25: 0.2
A26: Totals | B26: =SUM(B23:B25) -> 12 | C26: 7.2 | D26: =SUM(D22:D25) -> 4.8 | E26: =SUM(B26:D26) -> 24 | F26: =SUM(F23:F25) -> 1
A28: For 31-60 riders 4 places
A29: Placings | B29: 1D | C29: 2D | D29: 3D
A30: 1st | B30: =$B$7*$F$30 -> 5.04 | C30: =$C$7*$F$30 -> 3.024 | D30: =$D$7*$F$30 -> 2.016 | E30: è | F30: 0.42
A31: 2nd | B31: =$B$7*$F$31 -> 3.48 | C31: =$C$7*$F$31 -> 2.088 | D31: =$D$7*$F$31 -> 1.392 | E31: è | F31: 0.29
A32: 3rd | B32: =$B$7*$F$32 -> 2.28 | C32: =$C$7*$F$32 -> 1.368 | D32: =$D$7*$F$32 -> 0.912 | E32: è | F32: 0.19
A33: 4th | B33: =$B$7*$F$33 -> 1.2 | C33: =$C$7*$F$33 -> 0.72 | D33: =$D$7*$F$33 -> 0.48 | E33: è | F33: 0.1
A34: Totals | B34: =SUM(B30:B33) -> 12 | C34: 7.2 | D34: 4.8 | E34: =SUM(B34:D34) -> 24 | F34: =SUM(F30:F33) -> 1
A36: For 61-90 riders 5 places
A37: Placings | B37: 1D | C37: 2D | D37: 3D
A38: 1st | B38: =$B$7*$F$38 -> 4.56 | C38: =$C$7*$F$38 -> 2.736 | D38: =$D$7*$F$38 -> 1.824 | E38: è | F38: 0.38
A39: 2nd | B39: =$B$7*$F$39 -> 3.36 | C39: =$C$7*$F$39 -> 2.016 | D39: =$D$7*$F$39 -> 1.344 | E39: è | F39: 0.28
A40: 3rd | B40: =$B$7*$F$40 -> 2.16 | C40: =$C$7*$F$40 -> 1.296 | D40: =$D$7*$F$40 -> 0.864 | E40: è | F40: 0.18
A41: 4th | B41: =$B$7*$F$41 -> 1.2 | C41: =$C$7*$F$41 -> 0.72 | D41: =$D$7*$F$41 -> 0.48 | E41: è | F41: 0.1
A42: 5th | B42: =$B$7*$F$42 -> 0.72 | C42: =$C$7*$F$42 -> 0.432 | D42: =$D$7*$F$42 -> 0.288 | E42: è | F42: 0.06
A43: Totals | B43: =SUM(B38:B42) -> 12 | C43: 7.2 | D43: 4.8 | E43: =SUM(B43:D43) -> 24 | F43: =SUM(F38:F42) -> 1
A45: For 91-120 riders 6 places
A46: Placings | B46: 1D | C46: 2D | D46: 3D
A47: 1st | B47: =$B$7*$F$47 -> 4.32 | C47: =$C$7*$F$47 -> 2.592 | D47: =$D$7*$F$47 -> 1.728 | E47: è | F47: 0.36
A48: 2nd | B48: =$B$7*$F$48 -> 3.12 | C48: =$C$7*$F$48 -> 1.872 | D48: =$D$7*$F$48 -> 1.248 | E48: è | F48: 0.26
A49: 3rd | B49: =$B$7*$F$49 -> 1.92 | C49: =$C$7*$F$49 -> 1.152 | D49: =$D$7*$F$49 -> 0.768 | E49: è | F49: 0.16
A50: 4th | B50: =$B$7*$F$50 -> 1.2 | C50: =$C$7*$F$50 -> 0.72 | D50: =$D$7*$F$50 -> 0.48 | E50: è | F50: 0.1
A51: 5th | B51: =$B$7*$F$51 -> 0.84 | C51: =$C$7*$F$51 -> 0.504 | D51: =$D$7*$F$51 -> 0.336 | E51: è | F51: 0.07
A52: 6th | B52: =$B$7*$F$52 -> 0.6 | C52: =$C$7*$F$52 -> 0.36 | D52: =$D$7*$F$52 -> 0.24 | E52: è | F52: 0.05
A53: Totals | B53: =SUM(B47:B52) -> 12 | C53: 7.2 | D53: 4.8 | E53: =SUM(B53:D53) -> 24 | F53: =SUM(F47:F52) -> 1
A55: For 121-200 riders 7 places
A56: Placings | B56: 1D | C56: 2D | D56: 3D
A57: 1st | B57: =$B$7*$F$57 -> 3.12 | C57: =$C$7*$F$57 -> 1.872 | D57: =$D$7*$F$57 -> 1.248 | E57: è | F57: 0.26
A58: 2nd | B58: =$B$7*$F$58 -> 2.4 | C58: =$C$7*$F$58 -> 1.44 | D58: =$D$7*$F$58 -> 0.96 | E58: è | F58: 0.2
A59: 3rd | B59: =$B$7*$F$59 -> 1.8 | C59: =$C$7*$F$59 -> 1.08 | D59: =$D$7*$F$59 -> 0.72 | E59: è | F59: 0.15
A60: 4th | B60: =$B$7*$F$60 -> 1.44 | C60: =$C$7*$F$60 -> 0.864 | D60: =$D$7*$F$60 -> 0.576 | E60: è | F60: 0.12
A61: 5th | B61: =$B$7*$F$61 -> 1.2 | C61: =$C$7*$F$61 -> 0.72 | D61: =$D$7*$F$61 -> 0.48 | E61: è | F61: 0.1
A62: 6th | B62: =$B$7*$F$62 -> 1.08 | C62: =$C$7*$F$62 -> 0.648 | D62: =$D$7*$F$62 -> 0.432 | E62: è | F62: 0.09
A63: 7th | B63: =$B$7*$F$63 -> 0.96 | C63: =$C$7*$F$63 -> 0.576 | D63: =$D$7*$F$63 -> 0.384 | E63: è | F63: 0.08
A64: Totals | B64: =SUM(B57:B63) -> 12 | C64: 7.2 | D64: 4.8 | E64: =SUM(B64:D64) -> 24 | F64: =SUM(F57:F63) -> 1
A66: For 201 or more riders 8 places
A67: Placings | B67: 1D | C67: 2D | D67: 3D
A68: 1st | B68: =$B$7*0.24 -> 2.88 | C68: =$C$7*0.24 -> 1.728 | D68: =$D$7*0.24 -> 1.152 | E68: è | F68: 0.24
A69: 2nd | B69: =$B$7*0.18 -> 2.16 | C69: =$C$7*0.18 -> 1.296 | D69: =$D$7*0.18 -> 0.864 | E69: è | F69: 0.18
A70: 3rd | B70: =$B$7*0.15 -> 1.8 | C70: =$C$7*0.15 -> 1.08 | D70: =$D$7*0.15 -> 0.72 | E70: è | F70: 0.15
A71: 4th | B71: =$B$7*0.12 -> 1.44 | C71: =$C$7*0.12 -> 0.864 | D71: =$D$7*0.12 -> 0.576 | E71: è | F71: 0.12
A72: 5th | B72: =$B$7*0.1 -> 1.2 | C72: =$C$7*0.1 -> 0.72 | D72: =$D$7*0.1 -> 0.48 | E72: è | F72: 0.1
A73: 6th | B73: =$B$7*0.08 -> 0.96 | C73: =$C$7*0.08 -> 0.576 | D73: =$D$7*0.08 -> 0.384 | E73: è | F73: 0.08
A74: 7th | B74: =$B$7*0.07 -> 0.84 | C74: =$C$7*0.07 -> 0.504 | D74: =$D$7*0.07 -> 0.336 | E74: è | F74: 0.07
A75: 8th | B75: =$B$7*0.06 -> 0.72 | C75: =$C$7*0.06 -> 0.432 | D75: =$D$7*0.06 -> 0.288 | E75: è | F75: 0.06
A76: Totals | B76: =SUM(B68:B75) -> 12 | C76: 7.2 | D76: 4.8 | E76: =SUM(B76:D76) -> 24 | F76: =SUM(F68:F75) -> 1

Sheet 4D Payout BBR (hidden)
A1: 4D Payout BBR
A2: Entry Fee | B2: # Entries | C2: % Payback | D2: $ From Entry | E2: Added $ | F2: Total Payout
A3: 40 | B3: 200 | C3: 0.8 | D3: =$A$3*$C$3*$B$3 -> 6400 | E3: 1100 | F3: =($A$3*$C$3)*$B$3+$E$3 -> 7500
A5: % in each D | B5: 0.35 | C5: 0.3 | D5: 0.2 | E5: 0.15 | F5: Total % Payout | G5: =SUM(B5:E5) -> 1
B6: 1D | C6: 2D | D6: 3D | E6: 4D
B7: =(($A$3*$B$3*$C$3*0.35)+($E$3/4)) -> 2515 | C7: =(($A$3*$B$3*$C$3*0.3)+($E$3/4)) -> 2195 | D7: =(($A$3*$B$3*$C$3*0.2)+($E$3/4)) -> 1555 | E7: =(($A$3*$B$3*$C$3*0.15)+($E$3/4)) -> 1235
A8: Totals | B8: =SUM(B7) -> 2515 | C8: 2195 | D8: 1555 | E8: 1235 | F8: =SUM(B8:E8) -> 7500
A10: For 1-16 riders 1 place
A11: Placings | B11: 1D | C11: 2D | D11: 3D | E11: 4D
A12: 1st | B12: =$B$7*$G$12 -> 2515 | C12: =$C$7*$G$12 -> 2195 | D12: =$D$7*$G$12 -> 1555 | E12: =$E$7*$G$12 -> 1235 | F12: è | G12: 1
A13: Totals | B13: =SUM(B12) -> 2515 | C13: 2195 | D13: 1555 | E13: 1235 | F13: =SUM(B13:E13) -> 7500 | G13: =SUM(G12) -> 1
A15: For 17-33 riders 2 places
A16: Placings | B16: 1D | C16: 2D | D16: 3D | E16: 4D
A17: 1st | B17: =$B$7*$G$17 -> 1509 | C17: =$C$7*$G$17 -> 1317 | D17: =$D$7*$G$17 -> 933 | E17: =$E$7*$G$17 -> 741 | F17: è | G17: 0.6
A18: 2nd | B18: =$B$7*$G$18 -> 1006 | C18: =$C$7*$G$18 -> 878 | D18: =$D$7*$G$18 -> 622 | E18: =$E$7*$G$18 -> 494 | F18: è | G18: 0.4
A19: Totals | B19: =SUM(B17:B18) -> 2515 | C19: 2195 | D19: 1555 | E19: 1235 | F19: =SUM(B19:E19) -> 7500 | G19: =SUM(G17:G18) -> 1
A21: For 34-66 riders 3 places
A22: Placings | B22: 1D | C22: 2D | D22: 3D | E22: 4D
A23: 1st | B23: =$B$7*$G$23 -> 1257.5 | C23: =$C$7*$G$23 -> 1097.5 | D23: =$D$7*$G$23 -> 777.5 | E23: =$E$7*$G$23 -> 617.5 | F23: è | G23: 0.5
A24: 2nd | B24: =$B$7*$G$24 -> 754.5 | C24: =$C$7*$G$24 -> 658.5 | D24: =$D$7*$G$24 -> 466.5 | E24: =$E$7*$G$24 -> 370.5 | F24: è | G24: 0.3
A25: 3rd | B25: =$B$7*$G$25 -> 503 | C25: =$C$7*$G$25 -> 439 | D25: =$D$7*$G$25 -> 311 | E25: =$E$7*$G$25 -> 247 | F25: è | G25: 0.2
A26: Totals | B26: =SUM(B23:B25) -> 2515 | C26: 2195 | D26: 1555 | E26: 1235 | F26: =SUM(B26:E26) -> 7500 | G26: =SUM(G23:G25) -> 1
A28: For 97-95 riders 4 places
A29: Placings | B29: 1D | C29: 2D | D29: 3D | E29: 4D
A30: 1st | B30: =$B$7*$G$30 -> 1006 | C30: =$C$7*$G$30 -> 878 | D30: =$D$7*$G$30 -> 622 | E30: =$E$7*$G$30 -> 494 | F30: è | G30: 0.4
A31: 2nd | B31: =$B$7*$G$31 -> 754.5 | C31: =$C$7*$G$31 -> 658.5 | D31: =$D$7*$G$31 -> 466.5 | E31: =$E$7*$G$31 -> 370.5 | F31: è | G31: 0.3
A32: 3rd | B32: =$B$7*$G$32 -> 503 | C32: =$C$7*$G$32 -> 439 | D32: =$D$7*$G$32 -> 311 | E32: =$E$7*$G$32 -> 247 | F32: è | G32: 0.2
A33: 4th | B33: =$B$7*$G$33 -> 251.5 | C33: =$C$7*$G$33 -> 219.5 | D33: =$D$7*$G$33 -> 155.5 | E33: =$E$7*$G$33 -> 123.5 | F33: è | G33: 0.1
A34: Totals | B34: =SUM(B30:B33) -> 2515 | C34: 2195 | D34: 1555 | E34: 1235 | F34: =SUM(B34:E34) -> 7500 | G34: =SUM(G30:G33) -> 1
A36: For 96-133 riders 5 places
A37: Placings | B37: 1D | C37: 2D | D37: 3D | E37: 4D
A38: 1st | B38: =$B$7*$G$38 -> 829.95 | C38: =$C$7*$G$38 -> 724.35 | D38: =$D$7*G38 -> 513.15 | E38: =$E$7*$G$38 -> 407.55 | F38: è | G38: 0.33
A39: 2nd | B39: =$B$7*$G$39 -> 679.05 | C39: =$C$7*$G$39 -> 592.65 | D39: =$D$7*$G$39 -> 419.85 | E39: =$E$7*$G$39 -> 333.45 | F39: è | G39: 0.27
A40: 3rd | B40: =$B$7*$G$40 -> 503 | C40: =$C$7*$G$40 -> 439 | D40: =$D$7*$G$40 -> 311 | E40: =$E$7*$G$40 -> 247 | F40: è | G40: 0.2
A41: 4th | B41: =$B$7*$G$41 -> 326.95 | C41: =$C$7*$G$41 -> 285.35 | D41: =$D$7*$G$41 -> 202.15 | E41: =$E$7*$G$41 -> 160.55 | F41: è | G41: 0.13
A42: 5th | B42: =$B$7*$G$42 -> 176.05 | C42: =$C$7*$G$42 -> 153.65 | D42: =$D$7*$G$42 -> 108.85 | E42: =$E$7*$G$42 -> 86.45 | F42: è | G42: 0.07
A43: Totals | B43: =SUM(B38:B42) -> 2515 | C43: 2195 | D43: 1555 | E43: 1235 | F43: =SUM(B43:E43) -> 7500 | G43: =SUM(G38:G42) -> 1
A45: For 134-166 riders 6 places
A46: Placings | B46: 1D | C46: 2D | D46: 3D | E46: 4D
A47: 1st | B47: =$B$7*$G$47 -> 729.35 | C47: =$C$7*$G$47 -> 636.55 | D47: =$D$7*$G$47 -> 450.95 | E47: =$E$7*$G$47 -> 358.15 | F47: è | G47: 0.29
A48: 2nd | B48: =$B$7*$G$48 -> 603.6 | C48: =$C$7*$G$48 -> 526.8 | D48: =$D$7*$G$48 -> 373.2 | E48: =$E$7*$G$48 -> 296.4 | F48: è | G48: 0.24
A49: 3rd | B49: =$B$7*$G$49 -> 477.85 | C49: =$C$7*$G$49 -> 417.05 | D49: =$D$7*$G$49 -> 295.45 | E49: =$E$7*$G$49 -> 234.65 | F49: è | G49: 0.19
A50: 4th | B50: =$B$7*$G$50 -> 352.1 | C50: =$C$7*$G$50 -> 307.3 | D50: =$D$7*$G$50 -> 217.7 | E50: =$E$7*$G$50 -> 172.9 | F50: è | G50: 0.14
A51: 5th | B51: =$B$7*$G$51 -> 226.35 | C51: =$C$7*$G$51 -> 197.55 | D51: =$D$7*$G$51 -> 139.95 | E51: =$E$7*$G$51 -> 111.15 | F51: è | G51: 0.09
A52: 6th | B52: =$B$7*$G$52 -> 125.75 | C52: =$C$7*$G$52 -> 109.75 | D52: =$D$7*$G$52 -> 77.75 | E52: =$E$7*$G$52 -> 61.75 | F52: è | G52: 0.05
A53: Totals | B53: =SUM(B47:B52) -> 2515 | C53: 2195 | D53: 1555 | E53: 1235 | F53: =SUM(B53:E53) -> 7500 | G53: =SUM(G47:G52) -> 1
A55: For 167-222 riders 8 places
A56: Placings | B56: 1D | C56: 2D | D56: 3D | E56: 4D
A57: 1st | B57: =$B$7*$G$57 -> 603.6 | C57: =$C$7*$G$57 -> 526.8 | D57: =$D$7*$G$57 -> 373.2 | E57: =$E$7*$G$57 -> 296.4 | F57: è | G57: 0.24
A58: 2nd | B58: =$B$7*$G$58 -> 503 | C58: =$C$7*$G$58 -> 439 | D58: =$D$7*$G$58 -> 311 | E58: =$E$7*$G$58 -> 247 | F58: è | G58: 0.2
A59: 3rd | B59: =$B$7*$G$59 -> 427.55 | C59: =$C$7*$G$59 -> 373.15 | D59: =$D$7*$G$59 -> 264.35 | E59: =$E$7*$G$59 -> 209.95 | F59: è | G59: 0.17
A60: 4th | B60: =$B$7*$G$60 -> 326.95 | C60: =$C$7*$G$60 -> 285.35 | D60: =$D$7*$G$60 -> 202.15 | E60: =$E$7*$G$60 -> 160.55 | F60: è | G60: 0.13
A61: 5th | B61: =$B$7*$G$61 -> 251.5 | C61: =$C$7*$G$61 -> 219.5 | D61: =$D$7*$G$61 -> 155.5 | E61: =$E$7*$G$61 -> 123.5 | F61: è | G61: 0.1
A62: 6th | B62: =$B$7*$G$62 -> 176.05 | C62: =$C$7*$G$62 -> 153.65 | D62: =$D$7*$G$62 -> 108.85 | E62: =$E$7*$G$62 -> 86.45 | F62: è | G62: 0.07
A63: 7th | B63: =$B$7*$G$63 -> 125.75 | C63: =$C$7*$G$63 -> 109.75 | D63: =$D$7*$G$63 -> 77.75 | E63: =$E$7*$G$63 -> 61.75 | F63: è | G63: 0.05
A64: 8th | B64: =$B$7*$G$64 -> 100.6 | C64: =$C$7*$G$64 -> 87.8 | D64: =$D$7*$G$64 -> 62.2 | E64: =$E$7*$G$64 -> 49.4 | F64: è | G64: 0.04
A65: Totals | B65: =SUM(B57:B64) -> 2515 | C65: 2195 | D65: 1555 | E65: 1235 | F65: =SUM(B65:E65) -> 7500 | G65: =SUM(G57:G64) -> 1
A67: For 223-333 riders 10 places
A68: Placings | B68: 1D | C68: 2D | D68: 3D | E68: 4D
A69: 1st | B69: =$B$7*$G$69 -> 528.15 | C69: =$C$7*$G$69 -> 460.95 | D69: =$D$7*$G$69 -> 326.55 | E69: =$E$7*$G$69 -> 259.35 | F69: è | G69: 0.21
A70: 2nd | B70: =$B$7*$G$70 -> 452.7 | C70: =$C$7*$G$70 -> 395.1 | D70: =$D$7*$G$70 -> 279.9 | E70: =$E$7*$G$70 -> 222.3 | F70: è | G70: 0.18
A71: 3rd | B71: =$B$7*$G$71 -> 377.25 | C71: =$C$7*$G$71 -> 329.25 | D71: =$D$7*$G$71 -> 233.25 | E71: =$E$7*$G$71 -> 185.25 | F71: è | G71: 0.15
A72: 4th | B72: =$B$7*$G$72 -> 301.8 | C72: =$C$7*$G$72 -> 263.4 | D72: =$D$7*$G$72 -> 186.6 | E72: =$E$7*$G$72 -> 148.2 | F72: è | G72: 0.12
A73: 5th | B73: =$B$7*$G$73 -> 226.35 | C73: =$C$7*$G$73 -> 197.55 | D73: =$D$7*$G$73 -> 139.95 | E73: =$E$7*$G$73 -> 111.15 | F73: è | G73: 0.09
A74: 6th | B74: =$B$7*$G$74 -> 176.05 | C74: =$C$7*$G$74 -> 153.65 | D74: =$D$7*$G$74 -> 108.85 | E74: =$E$7*$G$74 -> 86.45 | F74: è | G74: 0.07
A75: 7th | B75: =$B$7*$G$75 -> 150.9 | C75: =$C$7*$G$75 -> 131.7 | D75: =$D$7*$G$75 -> 93.3 | E75: =$E$7*$G$75 -> 74.1 | F75: è | G75: 0.06
A76: 8th | B76: =$B$7*$G$76 -> 125.75 | C76: =$C$7*$G$76 -> 109.75 | D76: =$D$7*$G$76 -> 77.75 | E76: =$E$7*$G$76 -> 61.75 | F76: è | G76: 0.05
A77: 9th | B77: =$B$7*$G$77 -> 100.6 | C77: =$C$7*$G$77 -> 87.8 | D77: =$D$7*$G$77 -> 62.2 | E77: =$E$7*$G$77 -> 49.4 | F77: è | G77: 0.04
A78: 10th | B78: =$B$7*$G$78 -> 75.45 | C78: =$C$7*$G$78 -> 65.85 | D78: =$D$7*$G$78 -> 46.65 | E78: =$E$7*$G$78 -> 37.05 | F78: è | G78: 0.03
A79: Totals | B79: =SUM(B69:B78) -> 2515 | C79: 2195 | D79: 1555 | E79: 1235 | F79: =B79+C79+D79+E79 -> 7500 | G79: =SUM(G69:G78) -> 1
A81: For 334-500 riders 12 places
A82: Placings | B82: 1D | C82: 2D | D82: 3D | E82: 4D
A83: 1st | B83: =$B$7*$G$83 -> 477.85 | C83: =$C$7*$G$83 -> 417.05 | D83: =$D$7*$G$83 -> 295.45 | E83: =$E$7*$G$83 -> 234.65 | F83: è | G83: 0.19
A84: 2nd | B84: =$B$7*$G$84 -> 377.25 | C84: =$C$7*$G$84 -> 329.25 | D84: =$D$7*$G$84 -> 233.25 | E84: =$E$7*$G$84 -> 185.25 | F84: è | G84: 0.15
A85: 3rd | B85: =$B$7*$G$85 -> 301.8 | C85: =$C$7*$G$85 -> 263.4 | D85: =$D$7*$G$85 -> 186.6 | E85: =$E$7*$G$85 -> 148.2 | F85: è | G85: 0.12
A86: 4th | B86: =$B$7*$G$86 -> 251.5 | C86: =$C$7*$G$86 -> 219.5 | D86: =$D$7*$G$86 -> 155.5 | E86: =$E$7*$G$86 -> 123.5 | F86: è | G86: 0.1
A87: 5th | B87: =$B$7*$G$87 -> 226.35 | C87: =$C$7*$G$87 -> 197.55 | D87: =$D$7*$G$87 -> 139.95 | E87: =$E$7*$G$87 -> 111.15 | F87: è | G87: 0.09
A88: 6th | B88: =$B$7*$G$88 -> 201.2 | C88: =$C$7*$G$88 -> 175.6 | D88: =$D$7*$G$88 -> 124.4 | E88: =$E$7*$G$88 -> 98.8 | F88: è | G88: 0.08
A89: 7th | B89: =$B$7*$G$89 -> 176.05 | C89: =$C$7*$G$89 -> 153.65 | D89: =$D$7*$G$89 -> 108.85 | E89: =$E$7*$G$89 -> 86.45 | F89: è | G89: 0.07
A90: 8th | B90: =$B$7*$G$90 -> 150.9 | C90: =$C$7*$G$90 -> 131.7 | D90: =$D$7*$G$90 -> 93.3 | E90: =$E$7*$G$90 -> 74.1 | F90: è | G90: 0.06
A91: 9th | B91: =$B$7*$G$91 -> 125.75 | C91: =$C$7*$G$91 -> 109.75 | D91: =$D$7*$G$91 -> 77.75 | E91: =$E$7*$G$91 -> 61.75 | F91: è | G91: 0.05
A92: 10th | B92: =$B$7*$G$92 -> 100.6 | C92: =$C$7*$G$92 -> 87.8 | D92: =$D$7*$G$92 -> 62.2 | E92: =$E$7*$G$92 -> 49.4 | F92: è | G92: 0.04
A93: 11th | B93: =$B$7*$G$93 -> 75.45 | C93: =$C$7*$G$93 -> 65.85 | D93: =$D$7*$G$93 -> 46.65 | E93: =$E$7*$G$93 -> 37.05 | F93: è | G93: 0.03
A94: 12th | B94: =$B$7*$G$94 -> 50.3 | C94: =$C$7*$G$94 -> 43.9 | D94: =$D$7*$G$94 -> 31.1 | E94: =$E$7*$G$94 -> 24.7 | F94: è | G94: 0.02
A95: Totals | B95: =SUM(B83:B94) -> 2515 | C95: 2195 | D95: 1555 | E95: 1235 | F95: =B95+C95+D95+E95 -> 7500 | G95: =SUM(G83:G94) -> 1
A97: For 501-750 riders 15 places
A98: Placings | B98: 1D | C98: 2D | D98: 3D | E98: 4D
A99: 1st | B99: =$B$7*$G$99 -> 452.7 | C99: =$C$7*$G$99 -> 395.1 | D99: =$D$7*$G$99 -> 279.9 | E99: =$E$7*$G$99 -> 222.3 | F99: è | G99: 0.18
A100: 2nd | B100: =$B$7*$G$100 -> 377.25 | C100: =$C$7*$G$100 -> 329.25 | D100: =$D$7*$G$100 -> 233.25 | E100: =$E$7*$G$100 -> 185.25 | F100: è | G100: 0.15
A101: 3rd | B101: =$B$7*$G$101 -> 301.8 | C101: =$C$7*$G$101 -> 263.4 | D101: =$D$7*$G$101 -> 186.6 | E101: =$E$7*$G$101 -> 148.2 | F101: è | G101: 0.12
A102: 4th | B102: =$B$7*$G$102 -> 251.5 | C102: =$C$7*$G$102 -> 219.5 | D102: =$D$7*$G$102 -> 155.5 | E102: =$E$7*$G$102 -> 123.5 | F102: è | G102: 0.1
A103: 5th | B103: =$B$7*$G$103 -> 213.775 | C103: =$C$7*$G$103 -> 186.575 | D103: =$D$7*$G$103 -> 132.175 | E103: =$E$7*$G$103 -> 104.975 | F103: è | G103: 0.085
A104: 6th | B104: =$B$7*$G$104 -> 176.05 | C104: =$C$7*$G$104 -> 153.65 | D104: =$D$7*$G$104 -> 108.85 | E104: =$E$7*$G$104 -> 86.45 | F104: è | G104: 0.07
A105: 7th | B105: =$B$7*$G$105 -> 150.9 | C105: =$C$7*$G$105 -> 131.7 | D105: =$D$7*$G$105 -> 93.3 | E105: =$E$7*$G$105 -> 74.1 | F105: è | G105: 0.06
A106: 8th | B106: =$B$7*$G$106 -> 125.75 | C106: =$C$7*$G$106 -> 109.75 | D106: =$D$7*$G$106 -> 77.75 | E106: =$E$7*$G$106 -> 61.75 | F106: è | G106: 0.05
A107: 9th | B107: =$B$7*$G$107 -> 106.8875 | C107: =$C$7*$G$107 -> 93.2875 | D107: =$D$7*$G$107 -> 66.0875 | E107: =$E$7*$G$107 -> 52.4875 | F107: è | G107: 0.0425
A108: 10th | B108: =$B$7*$G$108 -> 88.025 | C108: =$C$7*$G$108 -> 76.825 | D108: =$D$7*$G$108 -> 54.425 | E108: =$E$7*$G$108 -> 43.225 | F108: è | G108: 0.035
A109: 11th | B109: =$B$7*$G$109 -> 75.45 | C109: =$C$7*$G$109 -> 65.85 | D109: =$D$7*$G$109 -> 46.65 | E109: =$E$7*$G$109 -> 37.05 | F109: è | G109: 0.03
A110: 12th | B110: =$B$7*$G$110 -> 62.875 | C110: =$C$7*$G$110 -> 54.875 | D110: =$D$7*$G$110 -> 38.875 | E110: =$E$7*$G$110 -> 30.875 | F110: è | G110: 0.025
A111: 13th | B111: =$B$7*$G$111 -> 50.3 | C111: =$C$7*$G$111 -> 43.9 | D111: =$D$7*$G$111 -> 31.1 | E111: =$E$7*$G$111 -> 24.7 | F111: è | G111: 0.02
A112: 14th | B112: =$B$7*$G$112 -> 44.0125 | C112: =$C$7*$G$112 -> 38.4125 | D112: =$D$7*$G$112 -> 27.2125 | E112: =$E$7*$G$112 -> 21.6125 | F112: è | G112: 0.0175
A113: 15th | B113: =$B$7*$G$113 -> 37.725 | C113: =$C$7*$G$113 -> 32.925 | D113: =$D$7*$G$113 -> 23.325 | E113: =$E$7*$G$113 -> 18.525 | F113: è | G113: 0.015
A114: Totals | B114: =SUM(B99:B113) -> 2515 | C114: 2195 | D114: 1555 | E114: 1235 | F114: =B114+C114+D114+E114 -> 7500 | G114: =SUM(G99:G113) -> 1
A116: For 751-1200 riders 20 places
A117: Placings | B117: 1D | C117: 2D | D117: 3D | E117: 4D
A118: 1st | B118: =$B$7*$G$118 -> 352.1 | C118: =$C$7*$G$118 -> 307.3 | D118: =$D$7*$G$118 -> 217.7 | E118: =$E$7*$G$118 -> 172.9 | F118: è | G118: 0.14
A119: 2nd | B119: =$B$7*$G$119 -> 276.65 | C119: =$C$7*$G$119 -> 241.45 | D119: =$D$7*$G$119 -> 171.05 | E119: =$E$7*$G$119 -> 135.85 | F119: è | G119: 0.11
A120: 3rd | B120: =$B$7*$G$120 -> 226.35 | C120: =$C$7*$G$120 -> 197.55 | D120: =$D$7*$G$120 -> 139.95 | E120: =$E$7*$G$120 -> 111.15 | F120: è | G120: 0.09
A121: 4th | B121: =$B$7*$G$121 -> 193.655 | C121: =$C$7*$G$121 -> 169.015 | D121: =$D$7*$G$121 -> 119.735 | E121: =$E$7*$G$121 -> 95.095 | F121: è | G121: 0.077
A122: 5th | B122: =$B$7*$G$122 -> 176.05 | C122: =$C$7*$G$122 -> 153.65 | D122: =$D$7*$G$122 -> 108.85 | E122: =$E$7*$G$122 -> 86.45 | F122: è | G122: 0.07
A123: 6th | B123: =$B$7*$G$123 -> 163.475 | C123: =$C$7*$G$123 -> 142.675 | D123: =$D$7*$G$123 -> 101.075 | E123: =$E$7*$G$123 -> 80.275 | F123: è | G123: 0.065
A124: 7th | B124: =$B$7*$G$124 -> 150.9 | C124: =$C$7*$G$124 -> 131.7 | D124: =$D$7*$G$124 -> 93.3 | E124: =$E$7*$G$124 -> 74.1 | F124: è | G124: 0.06
A125: 8th | B125: =$B$7*$G$125 -> 138.325 | C125: =$C$7*$G$125 -> 120.725 | D125: =$D$7*$G$125 -> 85.525 | E125: =$E$7*$G$125 -> 67.925 | F125: è | G125: 0.055
A126: 9th | B126: =$B$7*$G$126 -> 125.75 | C126: =$C$7*$G$126 -> 109.75 | D126: =$D$7*$G$126 -> 77.75 | E126: =$E$7*$G$126 -> 61.75 | F126: è | G126: 0.05
A127: 10th | B127: =$B$7*$G$127 -> 113.175 | C127: =$C$7*$G$127 -> 98.775 | D127: =$D$7*$G$127 -> 69.975 | E127: =$E$7*$G$127 -> 55.575 | F127: è | G127: 0.045
A128: 11th | B128: =$B$7*$G$128 -> 100.6 | C128: =$C$7*$G$128 -> 87.8 | D128: =$D$7*$G$128 -> 62.2 | E128: =$E$7*$G$128 -> 49.4 | F128: è | G128: 0.04
A129: 12th | B129: =$B$7*$G$129 -> 93.055 | C129: =$C$7*$G$129 -> 81.215 | D129: =$D$7*$G$129 -> 57.535 | E129: =$E$7*$G$129 -> 45.695 | F129: è | G129: 0.037
A130: 13th | B130: =$B$7*$G$130 -> 82.995 | C130: =$C$7*$G$130 -> 72.435 | D130: =$D$7*$G$130 -> 51.315 | E130: =$E$7*$G$130 -> 40.755 | F130: è | G130: 0.033
A131: 14th | B131: =$B$7*$G$131 -> 72.935 | C131: =$C$7*$G$131 -> 63.655 | D131: =$D$7*$G$131 -> 45.095 | E131: =$E$7*$G$131 -> 35.815 | F131: è | G131: 0.029
A132: 15th | B132: =$B$7*$G$132 -> 62.875 | C132: =$C$7*$G$132 -> 54.875 | D132: =$D$7*$G$132 -> 38.875 | E132: =$E$7*$G$132 -> 30.875 | F132: è | G132: 0.025
A133: 16th | B133: =$B$7*$G$133 -> 52.815 | C133: =$C$7*$G$133 -> 46.095 | D133: =$D$7*$G$133 -> 32.655 | E133: =$E$7*$G$133 -> 25.935 | F133: è | G133: 0.021
A134: 17th | B134: =$B$7*$G$134 -> 42.755 | C134: =$C$7*$G$134 -> 37.315 | D134: =$D$7*$G$134 -> 26.435 | E134: =$E$7*$G$134 -> 20.995 | F134: è | G134: 0.017
A135: 18th | B135: =$B$7*$G$135 -> 35.21 | C135: =$C$7*$G$135 -> 30.73 | D135: =$D$7*$G$135 -> 21.77 | E135: =$E$7*$G$135 -> 17.29 | F135: è | G135: 0.014
A136: 19th | B136: =$B$7*$G$136 -> 30.18 | C136: =$C$7*$G$136 -> 26.34 | D136: =$D$7*$G$136 -> 18.66 | E136: =$E$7*$G$136 -> 14.82 | F136: è | G136: 0.012
A137: 20th | B137: =$B$7*$G$137 -> 25.15 | C137: =$C$7*$G$137 -> 21.95 | D137: =$D$7*$G$137 -> 15.55 | E137: =$E$7*$G$137 -> 12.35 | F137: è | G137: 0.01
A138: Totals | B138: =SUM(B118:B137) -> 2515 | C138: 2195 | D138: 1555 | E138: 1235 | F138: =B138+C138+D138+E138 -> 7500 | G138: =SUM(G118:G137) -> 1
A140: For 1201 or More riders 30 places
A141: Placings | B141: 1D | C141: 2D | D141: 3D | E141: 4D
A142: 1st | B142: =$B$7*$G$142 -> 301.8 | C142: =$C$7*$G$142 -> 263.4 | D142: =$D$7*$G$142 -> 186.6 | E142: =$E$7*$G$142 -> 148.2 | F142: è | G142: 0.12
A143: 2nd | B143: =$B$7*$G$143 -> 238.925 | C143: =$C$7*$G$143 -> 208.525 | D143: =$D$7*$G$143 -> 147.725 | E143: =$E$7*$G$143 -> 117.325 | F143: è | G143: 0.095
A144: 3rd | B144: =$B$7*$G$144 -> 183.595 | C144: =$C$7*$G$144 -> 160.235 | D144: =$D$7*$G$144 -> 113.515 | E144: =$E$7*$G$144 -> 90.155 | F144: è | G144: 0.073
A145: 4th | B145: =$B$7*$G$145 -> 155.93 | C145: =$C$7*$G$145 -> 136.09 | D145: =$D$7*$G$145 -> 96.41 | E145: =$E$7*$G$145 -> 76.57 | F145: è | G145: 0.062
A146: 5th | B146: =$B$7*$G$146 -> 125.75 | C146: =$C$7*$G$146 -> 109.75 | D146: =$D$7*$G$146 -> 77.75 | E146: =$E$7*$G$146 -> 61.75 | F146: è | G146: 0.05
A147: 6th | B147: =$B$7*$G$147 -> 113.175 | C147: =$C$7*$G$147 -> 98.775 | D147: =$D$7*$G$147 -> 69.975 | E147: =$E$7*$G$147 -> 55.575 | F147: è | G147: 0.045
A148: 7th | B148: =$B$7*$G$148 -> 108.145 | C148: =$C$7*$G$148 -> 94.385 | D148: =$D$7*$G$148 -> 66.865 | E148: =$E$7*$G$148 -> 53.105 | F148: è | G148: 0.043
A149: 8th | B149: =$B$7*$G$149 -> 100.6 | C149: =$C$7*$G$149 -> 87.8 | D149: =$D$7*$G$149 -> 62.2 | E149: =$E$7*$G$149 -> 49.4 | F149: è | G149: 0.04
A150: 9th | B150: =$B$7*$G$150 -> 93.055 | C150: =$C$7*$G$150 -> 81.215 | D150: =$D$7*$G$150 -> 57.535 | E150: =$E$7*$G$150 -> 45.695 | F150: è | G150: 0.037
A151: 10th | B151: =$B$7*$G$151 -> 88.025 | C151: =$C$7*$G$151 -> 76.825 | D151: =$D$7*$G$151 -> 54.425 | E151: =$E$7*$G$151 -> 43.225 | F151: è | G151: 0.035
A152: 11th | B152: =$B$7*$G$152 -> 82.995 | C152: =$C$7*$G$152 -> 72.435 | D152: =$D$7*$G$152 -> 51.315 | E152: =$E$7*$G$152 -> 40.755 | F152: è | G152: 0.033
A153: 12th | B153: =$B$7*$G$153 -> 77.965 | C153: =$C$7*$G$153 -> 68.045 | D153: =$D$7*$G$153 -> 48.205 | E153: =$E$7*$G$153 -> 38.285 | F153: è | G153: 0.031
A154: 13th | B154: =$B$7*$G$154 -> 72.935 | C154: =$C$7*$G$154 -> 63.655 | D154: =$D$7*$G$154 -> 45.095 | E154: =$E$7*$G$154 -> 35.815 | F154: è | G154: 0.029
A155: 14th | B155: =$B$7*$G$155 -> 67.905 | C155: =$C$7*$G$155 -> 59.265 | D155: =$D$7*$G$155 -> 41.985 | E155: =$E$7*$G$155 -> 33.345 | F155: è | G155: 0.027
A156: 15th | B156: =$B$7*$G$156 -> 62.875 | C156: =$C$7*$G$156 -> 54.875 | D156: =$D$7*$G$156 -> 38.875 | E156: =$E$7*$G$156 -> 30.875 | F156: è | G156: 0.025
A157: 16th | B157: =$B$7*$G$157 -> 60.36 | C157: =$C$7*$G$157 -> 52.68 | D157: =$D$7*$G$157 -> 37.32 | E157: =$E$7*$G$157 -> 29.64 | F157: è | G157: 0.024
A158: 17th | B158: =$B$7*$G$158 -> 57.845 | C158: =$C$7*$G$158 -> 50.485 | D158: =$D$7*$G$158 -> 35.765 | E158: =$E$7*$G$158 -> 28.405 | F158: è | G158: 0.023
A159: 18th | B159: =$B$7*$G$159 -> 55.33 | C159: =$C$7*$G$159 -> 48.29 | D159: =$D$7*$G$159 -> 34.21 | E159: =$E$7*$G$159 -> 27.17 | F159: è | G159: 0.022
A160: 19th | B160: =$B$7*$G$160 -> 52.815 | C160: =$C$7*$G$160 -> 46.095 | D160: =$D$7*$G$160 -> 32.655 | E160: =$E$7*$G$160 -> 25.935 | F160: è | G160: 0.021
A161: 20th | B161: =$B$7*$G$161 -> 50.3 | C161: =$C$7*$G$161 -> 43.9 | D161: =$D$7*$G$161 -> 31.1 | E161: =$E$7*$G$161 -> 24.7 | F161: è | G161: 0.02
A162: 21st | B162: =$B$7*$G$162 -> 47.785 | C162: =$C$7*$G$162 -> 41.705 | D162: =$D$7*$G$162 -> 29.545 | E162: =$E$7*$G$162 -> 23.465 | F162: è | G162: 0.019
A163: 22nd | B163: =$B$7*$G$163 -> 45.27 | C163: =$C$7*$G$163 -> 39.51 | D163: =$D$7*$G$163 -> 27.99 | E163: =$E$7*$G$163 -> 22.23 | F163: è | G163: 0.018
A164: 23rd | B164: =$B$7*$G$164 -> 42.755 | C164: =$C$7*$G$164 -> 37.315 | D164: =$D$7*$G$164 -> 26.435 | E164: =$E$7*$G$164 -> 20.995 | F164: è | G164: 0.017
A165: 24th | B165: =$B$7*$G$165 -> 40.24 | C165: =$C$7*$G$165 -> 35.12 | D165: =$D$7*$G$165 -> 24.88 | E165: =$E$7*$G$165 -> 19.76 | F165: è | G165: 0.016
A166: 25th | B166: =$B$7*$G$166 -> 37.725 | C166: =$C$7*$G$166 -> 32.925 | D166: =$D$7*$G$166 -> 23.325 | E166: =$E$7*$G$166 -> 18.525 | F166: è | G166: 0.015
A167: 26th | B167: =$B$7*$G$167 -> 35.21 | C167: =$C$7*$G$167 -> 30.73 | D167: =$D$7*$G$167 -> 21.77 | E167: =$E$7*$G$167 -> 17.29 | F167: è | G167: 0.014
A168: 27th | B168: =$B$7*$G$168 -> 32.695 | C168: =$C$7*$G$168 -> 28.535 | D168: =$D$7*$G$168 -> 20.215 | E168: =$E$7*$G$168 -> 16.055 | F168: è | G168: 0.013
A169: 28th | B169: =$B$7*$G$169 -> 30.18 | C169: =$C$7*$G$169 -> 26.34 | D169: =$D$7*$G$169 -> 18.66 | E169: =$E$7*$G$169 -> 14.82 | F169: è | G169: 0.012
A170: 29th | B170: =$B$7*$G$170 -> 27.665 | C170: =$C$7*$G$170 -> 24.145 | D170: =$D$7*$G$170 -> 17.105 | E170: =$E$7*$G$170 -> 13.585 | F170: è | G170: 0.011
A171: 30th | B171: =$B$7*$G$171 -> 25.15 | C171: =$C$7*$G$171 -> 21.95 | D171: =$D$7*$G$171 -> 15.55 | E171: =$E$7*$G$171 -> 12.35 | F171: è | G171: 0.01
A172: Totals | B172: =SUM(B142:B171) -> 2515 | C172: 2195 | D172: 1555 | E172: 1235 | F172: =B172+C172+D172+E172 -> 7500 | G172: =SUM(G142:G171) -> 1

Sheet 5D Payout BBR
A1: 5D Payout BBR
A2: Entry Fee | B2: # Entries | C2: % Payback | D2: $ From Entry | E2: Added $ | F2: Total Payout | G2: Total $ Held
A3: 50 | B3: 231 | C3: 0.8 | D3: =$A$3*$C$3*$B$3 -> 9240 | E3: 2000 | F3: =($A$3*$C$3)*$B$3+$E$3 -> 11240 | G3: =$A$3*(100%-$C$3)*$B$3 -> 2310
A5: % in each D | B5: 0.3 | C5: 0.25 | D5: 0.2 | E5: 0.15 | F5: 0.1 | G5: Total % Payout | H5: =SUM(B5:F5) -> 1
B6: 1D | C6: 2D | D6: 3D | E6: 4D | F6: 5D
B7: =(($A$3*$B$3*$C$3*$B$5)+($E$3*$B$5)) -> 3372 | C7: =(($A$3*$B$3*$C$3*$C$5)+($E$3*$C$5)) -> 2810 | D7: =(($A$3*$B$3*$C$3*$D$5)+($E$3*$D$5)) -> 2248 | E7: =(($A$3*$B$3*$C$3*$E$5)+($E$3*$E$5)) -> 1686 | F7: =(($A$3*$B$3*$C$3*$F$5)+($E$3*$F$5)) -> 1124
A8: Totals | B8: =SUM(B7) -> 3372 | C8: 2810 | D8: 2248 | E8: 1686 | F8: 1124 | G8: =SUM(B8:F8) -> 11240
A10: For 1-25 riders 1 place
A11: Placings | B11: 1D | C11: 2D | D11: 3D | E11: 4D | F11: 5D
A12: 1st | B12: =$B$7*$H$12 -> 3372 | C12: =$C$7*$H$12 -> 2810 | D12: =$D$7*$H$12 -> 2248 | E12: =$E$7*$H$12 -> 1686 | F12: =$F$7*$H$12 -> 1124 | G12: è | H12: 1
A13: Totals | B13: =SUM(B12) -> 3372 | C13: 2810 | D13: 2248 | E13: 1686 | F13: 1124 | G13: =SUM(B13:F13) -> 11240 | H13: =SUM(H12) -> 1
A15: For 26-50 riders 2 places
A16: Placings | B16: 1D | C16: 2D | D16: 3D | E16: 4D | F16: 5D
A17: 1st | B17: =$B$7*$H$17 -> 2023.2 | C17: =$C$7*$H$17 -> 1686 | D17: =$D$7*$H$17 -> 1348.8 | E17: =$E$7*$H$17 -> 1011.6 | F17: =$F$7*$H$17 -> 674.4 | G17: è | H17: 0.6
A18: 2nd | B18: =$B$7*$H$18 -> 1348.8 | C18: =$C$7*$H$18 -> 1124 | D18: =$D$7*$H$18 -> 899.2 | E18: =$E$7*$H$18 -> 674.4 | F18: =$F$7*$H$18 -> 449.6 | G18: è | H18: 0.4
A19: Totals | B19: =SUM(B17:B18) -> 3372 | C19: 2810 | D19: 2248 | E19: 1686 | F19: 1124 | G19: =SUM(B19:F19) -> 11240 | H19: =SUM(H17:H18) -> 1
A21: For 51-100 riders 3 places
A22: Placings | B22: 1D | C22: 2D | D22: 3D | E22: 4D | F22: 5D
A23: 1st | B23: =$B$7*$H$23 -> 1686 | C23: =$C$7*$H$23 -> 1405 | D23: =$D$7*$H$23 -> 1124 | E23: =$E$7*$H$23 -> 843 | F23: =$F$7*$H$23 -> 562 | G23: è | H23: 0.5
A24: 2nd | B24: =$B$7*$H$24 -> 1011.6 | C24: =$C$7*$H$24 -> 843 | D24: =$D$7*$H$24 -> 674.4 | E24: =$E$7*$H$24 -> 505.8 | F24: =$F$7*$H$24 -> 337.2 | G24: è | H24: 0.3
A25: 3rd | B25: =$B$7*$H$25 -> 674.4 | C25: =$C$7*$H$25 -> 562 | D25: =$D$7*$H$25 -> 449.6 | E25: =$E$7*$H$25 -> 337.2 | F25: =$F$7*$H$25 -> 224.8 | G25: è | H25: 0.2
A26: Totals | B26: =SUM(B23:B25) -> 3372 | C26: 2810 | D26: 2248 | E26: 1686 | F26: 1124 | G26: =SUM(B26:F26) -> 11240 | H26: =SUM(H23:H25) -> 1
A28: For 101-143 riders 4 places
A29: Placings | B29: 1D | C29: 2D | D29: 3D | E29: 4D | F29: 5D
A30: 1st | B30: =$B$7*$H$30 -> 1348.8 | C30: =$C$7*$H$30 -> 1124 | D30: =$D$7*$H$30 -> 899.2 | E30: =$E$7*$H$30 -> 674.4 | F30: =$F$7*$H$30 -> 449.6 | G30: è | H30: 0.4
A31: 2nd | B31: =$B$7*$H$31 -> 1011.6 | C31: =$C$7*$H$31 -> 843 | D31: =$D$7*$H$31 -> 674.4 | E31: =$E$7*$H$31 -> 505.8 | F31: =$F$7*$H$31 -> 337.2 | G31: è | H31: 0.3
A32: 3rd | B32: =$B$7*$H$32 -> 674.4 | C32: =$C$7*$H$32 -> 562 | D32: =$D$7*$H$32 -> 449.6 | E32: =$E$7*$H$32 -> 337.2 | F32: =$F$7*$H$32 -> 224.8 | G32: è | H32: 0.2
A33: 4th | B33: =$B$7*$H$33 -> 337.2 | C33: =$C$7*$H$33 -> 281 | D33: =$D$7*$H$33 -> 224.8 | E33: =$E$7*$H$33 -> 168.6 | F33: =$F$7*$H$33 -> 112.4 | G33: è | H33: 0.1
A34: Totals | B34: =SUM(B30:B33) -> 3372 | C34: 2810 | D34: 2248 | E34: 1686 | F34: 1124 | G34: =SUM(B34:F34) -> 11240 | H34: =SUM(H30:H33) -> 1
A36: For 144-200 riders 5 places
A37: Placings | B37: 1D | C37: 2D | D37: 3D | E37: 4D | F37: 5D
A38: 1st | B38: =$B$7*$H$38 -> 1112.76 | C38: =$C$7*$H$38 -> 927.3 | D38: =$D$7*$H$38 -> 741.84 | E38: =$E$7*$H$38 -> 556.38 | F38: =$F$7*$H$38 -> 370.92 | G38: è | H38: 0.33
A39: 2nd | B39: =$B$7*$H$39 -> 910.44 | C39: =$C$7*$H$39 -> 758.7 | D39: =$D$7*$H$39 -> 606.96 | E39: =$E$7*$H$39 -> 455.22 | F39: =$F$7*$H$39 -> 303.48 | G39: è | H39: 0.27
A40: 3rd | B40: =$B$7*$H$40 -> 674.4 | C40: =$C$7*$H$40 -> 562 | D40: =$D$7*$H$40 -> 449.6 | E40: =$E$7*$H$40 -> 337.2 | F40: =$F$7*$H$40 -> 224.8 | G40: è | H40: 0.2
A41: 4th | B41: =$B$7*$H$41 -> 438.36 | C41: =$C$7*$H$41 -> 365.3 | D41: =$D$7*$H$41 -> 292.24 | E41: =$E$7*$H$41 -> 219.18 | F41: =$F$7*$H$41 -> 146.12 | G41: è | H41: 0.13
A42: 5th | B42: =$B$7*$H$42 -> 236.04 | C42: =$C$7*$H$42 -> 196.7 | D42: =$D$7*$H$42 -> 157.36 | E42: =$E$7*$H$42 -> 118.02 | F42: =$F$7*$H$42 -> 78.68 | G42: è | H42: 0.07
A43: Totals | B43: =SUM(B38:B42) -> 3372 | C43: 2810 | D43: 2248 | E43: 1686 | F43: 1124 | G43: =SUM(B43:F43) -> 11240 | H43: =SUM(H38:H42) -> 1
A45: For 201-250 riders 6 places
A46: Placings | B46: 1D | C46: 2D | D46: 3D | E46: 4D | F46: 5D
A47: 1st | B47: =$B$7*$H$47 -> 977.88 | C47: =$C$7*$H$47 -> 814.9 | D47: =$D$7*$H$47 -> 651.92 | E47: =$E$7*$H$47 -> 488.94 | F47: =$F$7*$H$47 -> 325.96 | G47: è | H47: 0.29
A48: 2nd | B48: =$B$7*$H$48 -> 809.28 | C48: =$C$7*$H$48 -> 674.4 | D48: =$D$7*$H$48 -> 539.52 | E48: =$E$7*$H$48 -> 404.64 | F48: =$F$7*$H$48 -> 269.76 | G48: è | H48: 0.24
A49: 3rd | B49: =$B$7*$H$49 -> 640.68 | C49: =$C$7*$H$49 -> 533.9 | D49: =$D$7*$H$49 -> 427.12 | E49: =$E$7*$H$49 -> 320.34 | F49: =$F$7*$H$49 -> 213.56 | G49: è | H49: 0.19
A50: 4th | B50: =$B$7*$H$50 -> 472.08 | C50: =$C$7*$H$50 -> 393.4 | D50: =$D$7*$H$50 -> 314.72 | E50: =$E$7*$H$50 -> 236.04 | F50: =$F$7*$H$50 -> 157.36 | G50: è | H50: 0.14
A51: 5th | B51: =$B$7*$H$51 -> 303.48 | C51: =$C$7*$H$51 -> 252.9 | D51: =$D$7*$H$51 -> 202.32 | E51: =$E$7*$H$51 -> 151.74 | F51: =$F$7*$H$51 -> 101.16 | G51: è | H51: 0.09
A52: 6th | B52: =$B$7*$H$52 -> 168.6 | C52: =$C$7*$H$52 -> 140.5 | D52: =$D$7*$H$52 -> 112.4 | E52: =$E$7*$H$52 -> 84.3 | F52: =$F$7*$H$52 -> 56.2 | G52: è | H52: 0.05
A53: Totals | B53: =SUM(B47:B52) -> 3372 | C53: 2810 | D53: 2248 | E53: 1686 | F53: 1124 | G53: =SUM(B53:F53) -> 11240 | H53: =SUM(H47:H52) -> 1
A55: For 251-333 riders 8 places
A56: Placings | B56: 1D | C56: 2D | D56: 3D | E56: 4D | F56: 5D
A57: 1st | B57: =$B$7*$H$57 -> 809.28 | C57: =$C$7*$H$57 -> 674.4 | D57: =$D$7*$H$57 -> 539.52 | E57: =$E$7*$H$57 -> 404.64 | F57: =$F$7*$H$57 -> 269.76 | G57: è | H57: 0.24
A58: 2nd | B58: =$B$7*$H$58 -> 674.4 | C58: =$C$7*$H$58 -> 562 | D58: =$D$7*$H$58 -> 449.6 | E58: =$E$7*$H$58 -> 337.2 | F58: =$F$7*$H$58 -> 224.8 | G58: è | H58: 0.2
A59: 3rd | B59: =$B$7*$H$59 -> 573.24 | C59: =$C$7*$H$59 -> 477.7 | D59: =$D$7*$H$59 -> 382.16 | E59: =$E$7*$H$59 -> 286.62 | F59: =$F$7*$H$59 -> 191.08 | G59: è | H59: 0.17
A60: 4th | B60: =$B$7*$H$60 -> 438.36 | C60: =$C$7*$H$60 -> 365.3 | D60: =$D$7*$H$60 -> 292.24 | E60: =$E$7*$H$60 -> 219.18 | F60: =$F$7*$H$60 -> 146.12 | G60: è | H60: 0.13
A61: 5th | B61: =$B$7*$H$61 -> 337.2 | C61: =$C$7*$H$61 -> 281 | D61: =$D$7*$H$61 -> 224.8 | E61: =$E$7*$H$61 -> 168.6 | F61: =$F$7*$H$61 -> 112.4 | G61: è | H61: 0.1
A62: 6th | B62: =$B$7*$H$62 -> 236.04 | C62: =$C$7*$H$62 -> 196.7 | D62: =$D$7*$H$62 -> 157.36 | E62: =$E$7*$H$62 -> 118.02 | F62: =$F$7*$H$62 -> 78.68 | G62: è | H62: 0.07
A63: 7th | B63: =$B$7*$H$63 -> 168.6 | C63: =$C$7*$H$63 -> 140.5 | D63: =$D$7*$H$63 -> 112.4 | E63: =$E$7*$H$63 -> 84.3 | F63: =$F$7*$H$63 -> 56.2 | G63: è | H63: 0.05
A64: 8th | B64: =$B$7*$H$64 -> 134.88 | C64: =$C$7*$H$64 -> 112.4 | D64: =$D$7*$H$64 -> 89.92 | E64: =$E$7*$H$64 -> 67.44 | F64: =$F$7*$H$64 -> 44.96 | G64: è | H64: 0.04
A65: Totals | B65: =SUM(B57:B64) -> 3372 | C65: 2810 | D65: 2248 | E65: 1686 | F65: 1124 | G65: =SUM(B65:F65) -> 11240 | H65: =SUM(H57:H64) -> 1
A67: For 334-500 riders 10 places
A68: Placings | B68: 1D | C68: 2D | D68: 3D | E68: 4D | F68: 5D
A69: 1st | B69: =$B$7*$H$69 -> 708.12 | C69: =$C$7*$H$69 -> 590.1 | D69: =$D$7*$H$69 -> 472.08 | E69: =$E$7*$H$69 -> 354.06 | F69: =$F$7*$H$69 -> 236.04 | G69: è | H69: 0.21
A70: 2nd | B70: =$B$7*$H$70 -> 606.96 | C70: =$C$7*$H$70 -> 505.8 | D70: =$D$7*$H$70 -> 404.64 | E70: =$E$7*$H$70 -> 303.48 | F70: =$F$7*$H$70 -> 202.32 | G70: è | H70: 0.18
A71: 3rd | B71: =$B$7*$H$71 -> 505.8 | C71: =$C$7*$H$71 -> 421.5 | D71: =$D$7*$H$71 -> 337.2 | E71: =$E$7*$H$71 -> 252.9 | F71: =$F$7*$H$71 -> 168.6 | G71: è | H71: 0.15
A72: 4th | B72: =$B$7*$H$72 -> 404.64 | C72: =$C$7*$H$72 -> 337.2 | D72: =$D$7*$H$72 -> 269.76 | E72: =$E$7*$H$72 -> 202.32 | F72: =$F$7*$H$72 -> 134.88 | G72: è | H72: 0.12
A73: 5th | B73: =$B$7*$H$73 -> 303.48 | C73: =$C$7*$H$73 -> 252.9 | D73: =$D$7*$H$73 -> 202.32 | E73: =$E$7*$H$73 -> 151.74 | F73: =$F$7*$H$73 -> 101.16 | G73: è | H73: 0.09
A74: 6th | B74: =$B$7*$H$74 -> 236.04 | C74: =$C$7*$H$74 -> 196.7 | D74: =$D$7*$H$74 -> 157.36 | E74: =$E$7*$H$74 -> 118.02 | F74: =$F$7*$H$74 -> 78.68 | G74: è | H74: 0.07
A75: 7th | B75: =$B$7*$H$75 -> 202.32 | C75: =$C$7*$H$75 -> 168.6 | D75: =$D$7*$H$75 -> 134.88 | E75: =$E$7*$H$75 -> 101.16 | F75: =$F$7*$H$75 -> 67.44 | G75: è | H75: 0.06
A76: 8th | B76: =$B$7*$H$76 -> 168.6 | C76: =$C$7*$H$76 -> 140.5 | D76: =$D$7*$H$76 -> 112.4 | E76: =$E$7*$H$76 -> 84.3 | F76: =$F$7*$H$76 -> 56.2 | G76: è | H76: 0.05
A77: 9th | B77: =$B$7*$H$77 -> 134.88 | C77: =$C$7*$H$77 -> 112.4 | D77: =$D$7*$H$77 -> 89.92 | E77: =$E$7*$H$77 -> 67.44 | F77: =$F$7*$H$77 -> 44.96 | G77: è | H77: 0.04
A78: 10th | B78: =$B$7*$H$78 -> 101.16 | C78: =$C$7*$H$78 -> 84.3 | D78: =$D$7*$H$78 -> 67.44 | E78: =$E$7*$H$78 -> 50.58 | F78: =$F$7*$H$78 -> 33.72 | G78: è | H78: 0.03
A79: Totals | B79: =SUM(B69:B78) -> 3372 | C79: 2810 | D79: 2248 | E79: 1686 | F79: 1124 | G79: =SUM(B79:F79) -> 11240 | H79: =SUM(H69:H78) -> 1
A81: For 501-666 riders 12 places
A82: Placings | B82: 1D | C82: 2D | D82: 3D | E82: 4D | F82: 5D
A83: 1st | B83: =$B$7*$H$83 -> 640.68 | C83: =$C$7*$H$83 -> 533.9 | D83: =$D$7*$H$83 -> 427.12 | E83: =$E$7*$H$83 -> 320.34 | F83: =$F$7*$H$83 -> 213.56 | G83: è | H83: 0.19
A84: 2nd | B84: =$B$7*$H$84 -> 505.8 | C84: =$C$7*$H$84 -> 421.5 | D84: =$D$7*$H$84 -> 337.2 | E84: =$E$7*$H$84 -> 252.9 | F84: =$F$7*$H$84 -> 168.6 | G84: è | H84: 0.15
A85: 3rd | B85: =$B$7*$H$85 -> 404.64 | C85: =$C$7*$H$85 -> 337.2 | D85: =$D$7*$H$85 -> 269.76 | E85: =$E$7*$H$85 -> 202.32 | F85: =$F$7*$H$85 -> 134.88 | G85: è | H85: 0.12
A86: 4th | B86: =$B$7*$H$86 -> 337.2 | C86: =$C$7*$H$86 -> 281 | D86: =$D$7*$H$86 -> 224.8 | E86: =$E$7*$H$86 -> 168.6 | F86: =$F$7*$H$86 -> 112.4 | G86: è | H86: 0.1
A87: 5th | B87: =$B$7*$H$87 -> 303.48 | C87: =$C$7*$H$87 -> 252.9 | D87: =$D$7*$H$87 -> 202.32 | E87: =$E$7*$H$87 -> 151.74 | F87: =$F$7*$H$87 -> 101.16 | G87: è | H87: 0.09
A88: 6th | B88: =$B$7*$H$88 -> 269.76 | C88: =$C$7*$H$88 -> 224.8 | D88: =$D$7*$H$88 -> 179.84 | E88: =$E$7*$H$88 -> 134.88 | F88: =$F$7*$H$88 -> 89.92 | G88: è | H88: 0.08
A89: 7th | B89: =$B$7*$H$89 -> 236.04 | C89: =$C$7*$H$89 -> 196.7 | D89: =$D$7*$H$89 -> 157.36 | E89: =$E$7*$H$89 -> 118.02 | F89: =$F$7*$H$89 -> 78.68 | G89: è | H89: 0.07
A90: 8th | B90: =$B$7*$H$90 -> 202.32 | C90: =$C$7*$H$90 -> 168.6 | D90: =$D$7*$H$90 -> 134.88 | E90: =$E$7*$H$90 -> 101.16 | F90: =$F$7*$H$90 -> 67.44 | G90: è | H90: 0.06
A91: 9th | B91: =$B$7*$H$91 -> 168.6 | C91: =$C$7*$H$91 -> 140.5 | D91: =$D$7*$H$91 -> 112.4 | E91: =$E$7*$H$91 -> 84.3 | F91: =$F$7*$H$91 -> 56.2 | G91: è | H91: 0.05
A92: 10th | B92: =$B$7*$H$92 -> 134.88 | C92: =$C$7*$H$92 -> 112.4 | D92: =$D$7*$H$92 -> 89.92 | E92: =$E$7*$H$92 -> 67.44 | F92: =$F$7*$H$92 -> 44.96 | G92: è | H92: 0.04
A93: 11th | B93: =$B$7*$H$93 -> 101.16 | C93: =$C$7*$H$93 -> 84.3 | D93: =$D$7*$H$93 -> 67.44 | E93: =$E$7*$H$93 -> 50.58 | F93: =$F$7*$H$93 -> 33.72 | G93: è | H93: 0.03
A94: 12th | B94: =$B$7*$H$94 -> 67.44 | C94: =$C$7*$H$94 -> 56.2 | D94: =$D$7*$H$94 -> 44.96 | E94: =$E$7*$H$94 -> 33.72 | F94: =$F$7*$H$94 -> 22.48 | G94: è | H94: 0.02
A95: Totals | B95: =SUM(B83:B94) -> 3372 | C95: 2810 | D95: 2248 | E95: 1686 | F95: 1124 | G95: =SUM(B95:F95) -> 11240 | H95: =SUM(H83:H94) -> 1
A97: For 667-1000 riders 15 places
A98: Placings | B98: 1D | C98: 2D | D98: 3D | E98: 4D | F98: 5D
A99: 1st | B99: =$B$7*$H$99 -> 606.96 | C99: =$C$7*$H$99 -> 505.8 | D99: =$D$7*$H$99 -> 404.64 | E99: =$E$7*$H$99 -> 303.48 | F99: =$F$7*$H$99 -> 202.32 | G99: è | H99: 0.18
A100: 2nd | B100: =$B$7*$H$100 -> 505.8 | C100: =$C$7*$H$100 -> 421.5 | D100: =$D$7*$H$100 -> 337.2 | E100: =$E$7*$H$100 -> 252.9 | F100: =$F$7*$H$100 -> 168.6 | G100: è | H100: 0.15
A101: 3rd | B101: =$B$7*$H$101 -> 404.64 | C101: =$C$7*$H$101 -> 337.2 | D101: =$D$7*$H$101 -> 269.76 | E101: =$E$7*$H$101 -> 202.32 | F101: =$F$7*$H$101 -> 134.88 | G101: è | H101: 0.12
A102: 4th | B102: =$B$7*$H$102 -> 337.2 | C102: =$C$7*$H$102 -> 281 | D102: =$D$7*$H$102 -> 224.8 | E102: =$E$7*$H$102 -> 168.6 | F102: =$F$7*$H$102 -> 112.4 | G102: è | H102: 0.1
A103: 5th | B103: =$B$7*$H$103 -> 286.62 | C103: =$C$7*$H$103 -> 238.85 | D103: =$D$7*$H$103 -> 191.08 | E103: =$E$7*$H$103 -> 143.31 | F103: =$F$7*$H$103 -> 95.54 | G103: è | H103: 0.085
A104: 6th | B104: =$B$7*$H$104 -> 236.04 | C104: =$C$7*$H$104 -> 196.7 | D104: =$D$7*$H$104 -> 157.36 | E104: =$E$7*$H$104 -> 118.02 | F104: =$F$7*$H$104 -> 78.68 | G104: è | H104: 0.07
A105: 7th | B105: =$B$7*$H$105 -> 202.32 | C105: =$C$7*$H$105 -> 168.6 | D105: =$D$7*$H$105 -> 134.88 | E105: =$E$7*$H$105 -> 101.16 | F105: =$F$7*$H$105 -> 67.44 | G105: è | H105: 0.06
A106: 8th | B106: =$B$7*$H$106 -> 168.6 | C106: =$C$7*$H$106 -> 140.5 | D106: =$D$7*$H$106 -> 112.4 | E106: =$E$7*$H$106 -> 84.3 | F106: =$F$7*$H$106 -> 56.2 | G106: è | H106: 0.05
A107: 9th | B107: =$B$7*$H$107 -> 143.31 | C107: =$C$7*$H$107 -> 119.425 | D107: =$D$7*$H$107 -> 95.54 | E107: =$E$7*$H$107 -> 71.655 | F107: =$F$7*$H$107 -> 47.77 | G107: è | H107: 0.0425
A108: 10th | B108: =$B$7*$H$108 -> 118.02 | C108: =$C$7*$H$108 -> 98.35 | D108: =$D$7*$H$108 -> 78.68 | E108: =$E$7*$H$108 -> 59.01 | F108: =$F$7*$H$108 -> 39.34 | G108: è | H108: 0.035
A109: 11th | B109: =$B$7*$H$109 -> 101.16 | C109: =$C$7*$H$109 -> 84.3 | D109: =$D$7*$H$109 -> 67.44 | E109: =$E$7*$H$109 -> 50.58 | F109: =$F$7*$H$109 -> 33.72 | G109: è | H109: 0.03
A110: 12th | B110: =$B$7*$H$110 -> 84.3 | C110: =$C$7*$H$110 -> 70.25 | D110: =$D$7*$H$110 -> 56.2 | E110: =$E$7*$H$110 -> 42.15 | F110: =$F$7*$H$110 -> 28.1 | G110: è | H110: 0.025
A111: 13th | B111: =$B$7*$H$111 -> 67.44 | C111: =$C$7*$H$111 -> 56.2 | D111: =$D$7*$H$111 -> 44.96 | E111: =$E$7*$H$111 -> 33.72 | F111: =$F$7*$H$111 -> 22.48 | G111: è | H111: 0.02
A112: 14th | B112: =$B$7*$H$112 -> 59.01 | C112: =$C$7*$H$112 -> 49.175 | D112: =$D$7*$H$112 -> 39.34 | E112: =$E$7*$H$112 -> 29.505 | F112: =$F$7*$H$112 -> 19.67 | G112: è | H112: 0.0175
A113: 15th | B113: =$B$7*$H$113 -> 50.58 | C113: =$C$7*$H$113 -> 42.15 | D113: =$D$7*$H$113 -> 33.72 | E113: =$E$7*$H$113 -> 25.29 | F113: =$F$7*$H$113 -> 16.86 | G113: è | H113: 0.015
A114: Totals | B114: =SUM(B99:B113) -> 3372 | C114: 2810 | D114: 2248 | E114: 1686 | F114: 1124 | G114: =SUM(B114:F114) -> 11240 | H114: =SUM(H99:H113) -> 1
A116: For 1001-1500 riders 20 places
A117: Placings | B117: 1D | C117: 2D | D117: 3D | E117: 4D | F117: 5D
A118: 1st | B118: =$B$7*$H$118 -> 472.08 | C118: =$C$7*$H$118 -> 393.4 | D118: =$D$7*$H$118 -> 314.72 | E118: =$E$7*$H$118 -> 236.04 | F118: =$F$7*$H$118 -> 157.36 | G118: è | H118: 0.14
A119: 2nd | B119: =$B$7*$H$119 -> 370.92 | C119: =$C$7*$H$119 -> 309.1 | D119: =$D$7*$H$119 -> 247.28 | E119: =$E$7*$H$119 -> 185.46 | F119: =$F$7*$H$119 -> 123.64 | G119: è | H119: 0.11
A120: 3rd | B120: =$B$7*$H$120 -> 303.48 | C120: =$C$7*$H$120 -> 252.9 | D120: =$D$7*$H$120 -> 202.32 | E120: =$E$7*$H$120 -> 151.74 | F120: =$F$7*$H$120 -> 101.16 | G120: è | H120: 0.09
A121: 4th | B121: =$B$7*$H$121 -> 259.644 | C121: =$C$7*$H$121 -> 216.37 | D121: =$D$7*$H$121 -> 173.096 | E121: =$E$7*$H$121 -> 129.822 | F121: =$F$7*$H$121 -> 86.548 | G121: è | H121: 0.077
A122: 5th | B122: =$B$7*$H$122 -> 236.04 | C122: =$C$7*$H$122 -> 196.7 | D122: =$D$7*$H$122 -> 157.36 | E122: =$E$7*$H$122 -> 118.02 | F122: =$F$7*$H$122 -> 78.68 | G122: è | H122: 0.07
A123: 6th | B123: =$B$7*$H$123 -> 219.18 | C123: =$C$7*$H$123 -> 182.65 | D123: =$D$7*$H$123 -> 146.12 | E123: =$E$7*$H$123 -> 109.59 | F123: =$F$7*$H$123 -> 73.06 | G123: è | H123: 0.065
A124: 7th | B124: =$B$7*$H$124 -> 202.32 | C124: =$C$7*$H$124 -> 168.6 | D124: =$D$7*$H$124 -> 134.88 | E124: =$E$7*$H$124 -> 101.16 | F124: =$F$7*$H$124 -> 67.44 | G124: è | H124: 0.06
A125: 8th | B125: =$B$7*$H$125 -> 185.46 | C125: =$C$7*$H$125 -> 154.55 | D125: =$D$7*$H$125 -> 123.64 | E125: =$E$7*$H$125 -> 92.73 | F125: =$F$7*$H$125 -> 61.82 | G125: è | H125: 0.055
A126: 9th | B126: =$B$7*$H$126 -> 168.6 | C126: =$C$7*$H$126 -> 140.5 | D126: =$D$7*$H$126 -> 112.4 | E126: =$E$7*$H$126 -> 84.3 | F126: =$F$7*$H$126 -> 56.2 | G126: è | H126: 0.05
A127: 10th | B127: =$B$7*$H$127 -> 151.74 | C127: =$C$7*$H$127 -> 126.45 | D127: =$D$7*$H$127 -> 101.16 | E127: =$E$7*$H$127 -> 75.87 | F127: =$F$7*$H$127 -> 50.58 | G127: è | H127: 0.045
A128: 11th | B128: =$B$7*$H$128 -> 134.88 | C128: =$C$7*$H$128 -> 112.4 | D128: =$D$7*$H$128 -> 89.92 | E128: =$E$7*$H$128 -> 67.44 | F128: =$F$7*$H$128 -> 44.96 | G128: è | H128: 0.04
A129: 12th | B129: =$B$7*$H$129 -> 124.764 | C129: =$C$7*$H$129 -> 103.97 | D129: =$D$7*$H$129 -> 83.176 | E129: =$E$7*$H$129 -> 62.382 | F129: =$F$7*$H$129 -> 41.588 | G129: è | H129: 0.037
A130: 13th | B130: =$B$7*$H$130 -> 111.276 | C130: =$C$7*$H$130 -> 92.73 | D130: =$D$7*$H$130 -> 74.184 | E130: =$E$7*$H$130 -> 55.638 | F130: =$F$7*$H$130 -> 37.092 | G130: è | H130: 0.033
A131: 14th | B131: =$B$7*$H$131 -> 97.788 | C131: =$C$7*$H$131 -> 81.49 | D131: =$D$7*$H$131 -> 65.192 | E131: =$E$7*$H$131 -> 48.894 | F131: =$F$7*$H$131 -> 32.596 | G131: è | H131: 0.029
A132: 15th | B132: =$B$7*$H$132 -> 84.3 | C132: =$C$7*$H$132 -> 70.25 | D132: =$D$7*$H$132 -> 56.2 | E132: =$E$7*$H$132 -> 42.15 | F132: =$F$7*$H$132 -> 28.1 | G132: è | H132: 0.025
A133: 16th | B133: =$B$7*$H$133 -> 70.812 | C133: =$C$7*$H$133 -> 59.01 | D133: =$D$7*$H$133 -> 47.208 | E133: =$E$7*$H$133 -> 35.406 | F133: =$F$7*$H$133 -> 23.604 | G133: è | H133: 0.021
A134: 17th | B134: =$B$7*$H$134 -> 57.324 | C134: =$C$7*$H$134 -> 47.77 | D134: =$D$7*$H$134 -> 38.216 | E134: =$E$7*$H$134 -> 28.662 | F134: =$F$7*$H$134 -> 19.108 | G134: è | H134: 0.017
A135: 18th | B135: =$B$7*$H$135 -> 47.208 | C135: =$C$7*$H$135 -> 39.34 | D135: =$D$7*$H$135 -> 31.472 | E135: =$E$7*$H$135 -> 23.604 | F135: =$F$7*$H$135 -> 15.736 | G135: è | H135: 0.014
A136: 19th | B136: =$B$7*$H$136 -> 40.464 | C136: =$C$7*$H$136 -> 33.72 | D136: =$D$7*$H$136 -> 26.976 | E136: =$E$7*$H$136 -> 20.232 | F136: =$F$7*$H$136 -> 13.488 | G136: è | H136: 0.012
A137: 20th | B137: =$B$7*$H$137 -> 33.72 | C137: =$C$7*$H$137 -> 28.1 | D137: =$D$7*$H$137 -> 22.48 | E137: =$E$7*$H$137 -> 16.86 | F137: =$F$7*$H$137 -> 11.24 | G137: è | H137: 0.01
A138: Totals | B138: =SUM(B118:B137) -> 3372 | C138: 2810 | D138: 2248 | E138: 1686 | F138: 1124 | G138: =SUM(B138:F138) -> 11240 | H138: =SUM(H118:H137) -> 1
A140: For 1501 or More riders 30 places
A141: Placings | B141: 1D | C141: 2D | D141: 3D | E141: 4D | F141: 5D
A142: 1st | B142: =$B$7*$H142 -> 404.64 | C142: =$C$7*$H142 -> 337.2 | D142: =$D$7*$H142 -> 269.76 | E142: =$E$7*$H142 -> 202.32 | F142: =$F$7*$H142 -> 134.88 | G142: è | H142: 0.12
A143: 2nd | B143: 320.34 | C143: 266.95 | D143: 213.56 | E143: 160.17 | F143: 106.78 | G143: è | H143: 0.095
A144: 3rd | B144: 246.156 | C144: 205.13 | D144: 164.104 | E144: 123.078 | F144: 82.052 | G144: è | H144: 0.073
A145: 4th | B145: 209.064 | C145: 174.22 | D145: 139.376 | E145: 104.532 | F145: 69.688 | G145: è | H145: 0.062
A146: 5th | B146: 168.6 | C146: 140.5 | D146: 112.4 | E146: 84.3 | F146: 56.2 | G146: è | H146: 0.05
A147: 6th | B147: 151.74 | C147: 126.45 | D147: 101.16 | E147: 75.87 | F147: 50.58 | G147: è | H147: 0.045
A148: 7th | B148: 144.996 | C148: 120.83 | D148: 96.664 | E148: 72.498 | F148: 48.332 | G148: è | H148: 0.043
A149: 8th | B149: 134.88 | C149: 112.4 | D149: 89.92 | E149: 67.44 | F149: 44.96 | G149: è | H149: 0.04
A150: 9th | B150: 124.764 | C150: 103.97 | D150: 83.176 | E150: 62.382 | F150: 41.588 | G150: è | H150: 0.037
A151: 10th | B151: 118.02 | C151: 98.35 | D151: 78.68 | E151: 59.01 | F151: 39.34 | G151: è | H151: 0.035
A152: 11th | B152: 111.276 | C152: 92.73 | D152: 74.184 | E152: 55.638 | F152: 37.092 | G152: è | H152: 0.033
A153: 12th | B153: 104.532 | C153: 87.11 | D153: 69.688 | E153: 52.266 | F153: 34.844 | G153: è | H153: 0.031
A154: 13th | B154: 97.788 | C154: 81.49 | D154: 65.192 | E154: 48.894 | F154: 32.596 | G154: è | H154: 0.029
A155: 14th | B155: 91.044 | C155: 75.87 | D155: 60.696 | E155: 45.522 | F155: 30.348 | G155: è | H155: 0.027
A156: 15th | B156: 84.3 | C156: 70.25 | D156: 56.2 | E156: 42.15 | F156: 28.1 | G156: è | H156: 0.025
A157: 16th | B157: 80.928 | C157: 67.44 | D157: 53.952 | E157: 40.464 | F157: 26.976 | G157: è | H157: 0.024
A158: 17th | B158: 77.556 | C158: 64.63 | D158: 51.704 | E158: 38.778 | F158: 25.852 | G158: è | H158: 0.023
A159: 18th | B159: 74.184 | C159: 61.82 | D159: 49.456 | E159: 37.092 | F159: 24.728 | G159: è | H159: 0.022
A160: 19th | B160: 70.812 | C160: 59.01 | D160: 47.208 | E160: 35.406 | F160: 23.604 | G160: è | H160: 0.021
A161: 20th | B161: 67.44 | C161: 56.2 | D161: 44.96 | E161: 33.72 | F161: 22.48 | G161: è | H161: 0.02
A162: 21st | B162: 64.068 | C162: 53.39 | D162: 42.712 | E162: 32.034 | F162: 21.356 | G162: è | H162: 0.019
A163: 22nd | B163: 60.696 | C163: 50.58 | D163: 40.464 | E163: 30.348 | F163: 20.232 | G163: è | H163: 0.018
A164: 23rd | B164: 57.324 | C164: 47.77 | D164: 38.216 | E164: 28.662 | F164: 19.108 | G164: è | H164: 0.017
A165: 24th | B165: 53.952 | C165: 44.96 | D165: 35.968 | E165: 26.976 | F165: 17.984 | G165: è | H165: 0.016
A166: 25th | B166: 50.58 | C166: 42.15 | D166: 33.72 | E166: 25.29 | F166: 16.86 | G166: è | H166: 0.015
A167: 26th | B167: 47.208 | C167: 39.34 | D167: 31.472 | E167: 23.604 | F167: 15.736 | G167: è | H167: 0.014
A168: 27th | B168: 43.836 | C168: 36.53 | D168: 29.224 | E168: 21.918 | F168: 14.612 | G168: è | H168: 0.013
A169: 28th | B169: 40.464 | C169: 33.72 | D169: 26.976 | E169: 20.232 | F169: 13.488 | G169: è | H169: 0.012
A170: 29th | B170: 37.092 | C170: 30.91 | D170: 24.728 | E170: 18.546 | F170: 12.364 | G170: è | H170: 0.011
A171: 30th | B171: 33.72 | C171: 28.1 | D171: 22.48 | E171: 16.86 | F171: 11.24 | G171: è | H171: 0.01
A172: Totals | B172: =SUM(B142:B171) -> 3372 | C172: 2810 | D172: 2248 | E172: 1686 | F172: 1124 | G172: =SUM(B172:F172) -> 11240 | H172: =SUM(H142:H171) -> 1

Sheet DON'T TOUCH (hidden)
A2: Yes | C2: S | D2: 5 | E2: X
C3: A | D3: 10
C4: Y | D4: 15
C5: P | D5: BP
D6: SCR
